{"text_format":"3","workbook":"xlsx","n_sheets":11,"sheets":["Setup","1_Epid-SuiviEval","2_SocEcoParticipation","3_Politiques","4_Programme","5_Coordination","6_Eval-CSN","Dashboard","Calc","Orientations","Priorites"],"not_rendered":{"charts":1,"images":1,"macros":1,"external_links":1},"read":"whole","date_system":"1900"}

{"sheet":"Setup","index":0,"n_rows":186,"n_cols":35,"rows_kept":186,"merged":[[0,5,1,20],[1,31,1,35],[2,31,2,35],[4,31,4,36],[10,11,11,14],[12,10,12,12],[17,6,17,7],[17,31,17,35],[19,11,19,13],[20,5,20,10],[20,11,20,13],[21,5,21,10],[21,11,21,13],[21,31,21,35],[23,5,23,10],[23,11,23,13],[24,5,24,10],[24,11,24,13],[25,5,25,10],[25,11,25,13],[26,5,26,10],[26,11,26,13],[27,5,27,10],[27,11,27,13],[28,5,28,10],[28,11,28,13],[29,5,29,10],[29,11,29,13],[29,32,29,35],[30,5,30,10],[30,11,30,13],[30,31,32,35],[31,5,31,10],[31,11,31,13],[32,5,32,10],[32,11,32,13],[33,5,33,10],[33,11,33,13],[33,31,34,35],[34,5,34,10],[34,11,34,13]]}
[{"$nulls":5},"TEMPLATE D'EVALUATION DE LA PRISE EN COMPTE DU GENRE ET DROITS HUMAINS LES PLANS STRATEGIQUES"]
[{"$nulls":31},{"$f":"IF(L8=1,\"Cliquer ci-dessous pour acceder\",\"Click below to access\")","v":"Cliquer ci-dessous pour acceder"}]
[{"$nulls":31},""]
[]
[null,null,"DOCUMENT-TYPE HORS LIGNE POUR EVALUATION DES CAPACITES DES SRS DU SECTEUR PUBLIC","STANDARD OFFLINE TOOL FOR PUBLIC SRS CAPACITY EVALUATION",{"$nulls":27},{"$f":"UPPER(IF(L8=1,\"Modules Evaluation\",\"Evaluation Modules\"))","v":"MODULES EVALUATION"}]
[{"$nulls":4},"Liste"]
[null,null,"Francais",1]
[null,null,"Anglais",2,{"$nulls":5},{"$f":"UPPER(IF(L8=1,C19,D19))","v":"LANGUE:"},"Francais",{"$f":"IF(K8=\"Francais\",1,2)","v":1}]
[]
[null,null,"<== Il faut s'assurer de mettre a jour la composante si vous changez de langue"]
[null,null,"<== Make sure to update component if you change the language",{"$nulls":6},{"$f":"UPPER(IF(L8=1,\"Composante:\",\"Component:\"))","v":"COMPOSANTE:"},"VIH/SIDA",{"$f":"IF(L8=1,C10,C11)","v":"<== Il faut s'assurer de mettre a jour la composante si vous changez de langue"}]
[]
[null,null,"VIH/SIDA","HIV/AIDS",{"$nulls":5},{"$f":"UPPER(IF(L8=1,\"Pays:\",\"Country:\"))","v":"PAYS:"},"Central African Republic"]
[null,null,"Tuberculose","Tuberculosis"]
[null,null,"Paludisme","Malaria"]
[null,null,"VIH/TB","HIV/TB"]
[null,null,"RSS","HSS",null,{"$f":"UPPER(IF(L8=1,\"Date d'evaluation\",\"Evaluation date\"))","v":"DATE D'EVALUATION"}]
[{"$nulls":5},24,"Décembre",null,2018,{"$nulls":22},{"$f":"UPPER(IF(L8=1,\"Resultats Evaluation\",\"Evaluation issues\"))","v":"RESULTATS EVALUATION"}]
[null,null,"Langue:","Langage:"]
[{"$nulls":5},"EQUIPE D'EVALUATION",{"$nulls":5},{"$f":"UPPER(IF(K3=1,\"Structure\",\"Institution\"))","v":"INSTITUTION"}]
[null,null,"Composante","Component",{"$nulls":10},{"$f":"IF(L8=1,\"Leader Equipe\",\"Team Leader\")","v":"Leader Equipe"}]
[{"$nulls":14},{"$f":"IF($L$8=1,\"Membre\",\"Member\")","v":"Membre"},{"$nulls":16},{"$f":"UPPER(IF(L8=1,\"Plan d'amelioration\",\"capacity investment Plan\"))","v":"PLAN D'AMELIORATION"}]
[null,null,"Recipiendaire","Recipient ID",{"$nulls":10},{"$f":"IF($L$8=1,\"Membre\",\"Member\")","v":"Membre"}]
[{"$nulls":14},"Membre"]
[{"$nulls":14},"Membre"]
[{"$nulls":14},"Membre"]
[{"$nulls":14},"Membre",{"$nulls":19},1]
[{"$nulls":14},"Membre",{"$nulls":16},{"$f":"UPPER(IF(L8=1,\"Demande d'appui/suggestions\",\"Technical resquest/suggestions\"))","v":"DEMANDE D'APPUI/SUGGESTIONS"}]
[{"$nulls":14},"Membre"]
[{"$nulls":14},"Membre"]
[{"$nulls":14},"Membre",{"$nulls":16},"Ce template est développé pour soutenir l'évaluation de la prise en compte du genre et des droits humains. Pour tout besoin, envoyez un mail sur ==> direction@sapsapservices.com"]
[{"$nulls":14},"Membre"]
[{"$nulls":14},"Membre"]
[{"$nulls":14},"Membre",{"$nulls":16},"Le Template a été conçu avec l'aimable contribution de Sylvie BIAKO (Spécialiste genre et droits humains"]
[{"$nulls":14},"Membre"]
[]
[{"$nulls":34},1]
[]
[]
[]
[]
[]
[{"$nulls":21},"Afghanistan",null,null,"Jour","Day","Mois","Month","Annee","Year"]
[{"$nulls":21},"Albania",null,null,1,1,"Janvier","January",2014,2014]
[{"$nulls":21},"Algeria",null,null,2,2,"Fevrier","February",2015,2015]
[{"$nulls":21},"Angola",null,null,3,3,"Mars","March",2016,2016]
[{"$nulls":21},"Argentina",null,null,4,4,"Avril","April",2017,2017]
[{"$nulls":21},"Armenia",null,null,5,5,"Mai","May",2018,2018]
[{"$nulls":21},"Azerbaijan",null,null,6,6,"Juin","June",2019,2019]
[{"$nulls":21},"Bangladesh",null,null,7,7,"Juillet","July",2020,2020]
[{"$nulls":21},"Belarus",null,null,8,8,"Août","August",2021,2021]
[{"$nulls":21},"Belize",null,null,9,9,"Septembre","September",2022,2022]
[{"$nulls":21},"Benin",null,null,10,10,"Octobre","October",2023,2023]
[{"$nulls":21},"Bolivia (Plurinational State)",null,null,11,11,"Novembre","November",2024,2024]
[{"$nulls":21},"Bosnia and Herzegovina",null,null,12,12,"Décembre","December",2025,2025]
[{"$nulls":21},"Brazil",null,null,13,13]
[{"$nulls":21},"Bulgaria",null,null,14,14]
[{"$nulls":21},"Burkina Faso",null,null,15,15]
[{"$nulls":21},"Burundi",null,null,16,16]
[{"$nulls":21},"Buthan",null,null,17,17]
[{"$nulls":21},"Cambodia",null,null,18,18]
[{"$nulls":21},"Cameroon",null,null,19,19]
[{"$nulls":21},"Cape Verde",null,null,20,20]
[{"$nulls":21},"Central African Republic",null,null,21,21]
[{"$nulls":21},"Chad",null,null,22,22]
[{"$nulls":21},"Chile",null,null,23,23]
[{"$nulls":21},"China",null,null,24,24]
[{"$nulls":21},"Colombia",null,null,25,25]
[{"$nulls":21},"Comoros",null,null,26,26]
[{"$nulls":21},"Congo",null,null,27,27]
[{"$nulls":21},"Congo (Democratic Republic)",null,null,28,28]
[{"$nulls":21},"Costa Rica",null,null,29,29]
[{"$nulls":21},"Cote d'Ivoire",null,null,30,30]
[{"$nulls":21},"Croatia",null,null,31,31]
[{"$nulls":21},"Cuba"]
[{"$nulls":21},"Djibouti"]
[{"$nulls":21},"Dominican Republic"]
[{"$nulls":21},"Ecuador"]
[{"$nulls":21},"Egypt"]
[{"$nulls":21},"El Salvador"]
[{"$nulls":21},"Equatorial Guinea"]
[{"$nulls":21},"Eritrea"]
[{"$nulls":21},"Estonia"]
[{"$nulls":21},"Ethipia"]
[{"$nulls":21},"Fiji"]
[{"$nulls":21},"Gabon"]
[{"$nulls":21},"Gambia"]
[{"$nulls":21},"Georgia"]
[{"$nulls":21},"Ghana"]
[{"$nulls":21},"Guatemala"]
[{"$nulls":21},"Guinea"]
[{"$nulls":21},"Guinea-Bissau"]
[{"$nulls":21},"Guyana"]
[{"$nulls":21},"Haiti"]
[{"$nulls":21},"Honduras"]
[{"$nulls":21},"India"]
[{"$nulls":21},"Indonesia"]
[{"$nulls":21},"Iran (Islamic Republic)"]
[{"$nulls":21},"Iraq"]
[{"$nulls":21},"Jamaica"]
[{"$nulls":21},"Jordan"]
[{"$nulls":21},"Kazakhstan"]
[{"$nulls":21},"Kenya"]
[{"$nulls":21},"Korea (Democratic Peoples Republic)"]
[{"$nulls":21},"Kosovo"]
[{"$nulls":21},"Kyrgyzstan"]
[{"$nulls":21},"Lao (Peoples Democratic Republic)"]
[{"$nulls":21},"Lesotho"]
[{"$nulls":21},"Liberia"]
[{"$nulls":21},"Lutheran World Federation"]
[{"$nulls":21},"Macedonia (Former Yugoslav Republic)"]
[{"$nulls":21},"Madagascar"]
[{"$nulls":21},"Malawi"]
[{"$nulls":21},"Malaysia"]
[{"$nulls":21},"Maldives"]
[{"$nulls":21},"Mali"]
[{"$nulls":21},"Mauritania"]
[{"$nulls":21},"Mauritius"]
[{"$nulls":21},"Mexico"]
[{"$nulls":21},"Moldavia"]
[{"$nulls":21},"Mongolia"]
[{"$nulls":21},"Montenegro"]
[{"$nulls":21},"Morocco"]
[{"$nulls":21},"Mozambique"]
[{"$nulls":21},"Multicountry Africa (RMCC)"]
[{"$nulls":21},"Multicountry Africa (SADC)"]
[{"$nulls":21},"Multicountry Americas (Andean)"]
[{"$nulls":21},"Multicountry Americas (CARICOM/PANCAP)"]
[{"$nulls":21},"Multicountry Americas (COPRECOS)"]
[{"$nulls":21},"Multicountry Americas (CRN+)"]
[{"$nulls":21},"Multicountry Americas (Meso)"]
[{"$nulls":21},"Multicountry Americas (OECS)"]
[{"$nulls":21},"Multicountry Americas (REDCA+)"]
[{"$nulls":21},"Multicountry Americas (REDTRASEX)"]
[{"$nulls":21},"Multicountry East Asia and Pacific (APN+)"]
[{"$nulls":21},"Multicountry East Asia and Pacific (RAI)"]
[{"$nulls":21},"Multicountry East Asia and Pacific (SEAN-HIVOS)"]
[{"$nulls":21},"Multicountry Eastern Europe- Central Aisa (EHRN)"]
[{"$nulls":21},"Multicountry Middle East-North Africa (MENAHRA)"]
[{"$nulls":21},"Multicountry South Asia"]
[{"$nulls":21},"Multicountry Western Pacific"]
[{"$nulls":21},"Myanmar"]
[{"$nulls":21},"Namibia"]
[{"$nulls":21},"Nepal"]
[{"$nulls":21},"Nicaragua"]
[{"$nulls":21},"Niger"]
[{"$nulls":21},"Nigeria"]
[{"$nulls":21},"Pakistan"]
[{"$nulls":21},"Palestine"]
[{"$nulls":21},"Panama"]
[{"$nulls":21},"Papua New Guinea"]
[{"$nulls":21},"Peru"]
[{"$nulls":21},"Philippines"]
[{"$nulls":21},"Romania"]
[{"$nulls":21},"Russian Federation"]
[{"$nulls":21},"Rwanda"]
[{"$nulls":21},"Sao Tome and Principe"]
[{"$nulls":21},"Senegal"]
[{"$nulls":21},"Serbia"]
[{"$nulls":21},"Sierra Leone"]
[{"$nulls":21},"Solomon Islands"]
[{"$nulls":21},"South Africa"]
[{"$nulls":21},"South Sudan"]
[{"$nulls":21},"Sri Lanka"]
[{"$nulls":21},"Sudan"]
[{"$nulls":21},"Suriname"]
[{"$nulls":21},"Swaziland"]
[{"$nulls":21},"Switzerland"]
[{"$nulls":21},"Syrian Arab Republic"]
[{"$nulls":21},"Tajikistan"]
[{"$nulls":21},"Tanzania (United Republic)"]
[{"$nulls":21},"Thailand"]
[{"$nulls":21},"Timor-Leste"]
[{"$nulls":21},"Togo"]
[{"$nulls":21},"Tunusia"]
[{"$nulls":21},"Turkey"]
[{"$nulls":21},"Turkmenistan"]
[{"$nulls":21},"Uganda"]
[{"$nulls":21},"Ukraine"]
[{"$nulls":21},"Uruguay"]
[{"$nulls":21},"Uzbekistan"]
[{"$nulls":21},"Viet Nam"]
[{"$nulls":21},"Yemen"]
[{"$nulls":21},"Zambia"]
[{"$nulls":21},"Zanzibar"]
[{"$nulls":21},"Zimbabwe"]

{"sheet":"1_Epid-SuiviEval","index":1,"n_rows":52,"n_cols":7,"rows_kept":52,"merged":[[0,0,0,5],[17,1,17,2],[29,1,29,2],[31,0,33,0],[35,0,43,0],[45,0,47,0],[49,0,51,0]]}
["EPIDEMIOLOGIE & SUIVI EVALUATION"]
{"$rows_empty":15}
[null,"QUESTION","REPONSE",null,null,"CONSTATS/EVIDENCES"]
[null,"EPIDEMIOLOGIE",null,{"$f":"IFERROR(SUM(D19:D29)/E18,\"\")","v":""},{"$f":"SUM(G19:G29)","v":0}]
["EP.1","Existe-t-il des données récentes concernant le taux de prévalence du VIH, ventilé par sexe et par âge, chez la population générale ? Si oui, donnez les chiffres; Indiquer l’évolution dans le temps, des données sur la prévalence (ventilées par sexe et âge). ","Sélectionner",{"$f":"VLOOKUP(C19,Calc!$F$19:$G$23,2,FALSE)","v":""},{"$f":"IF(OR(C19=\"Sélectionner\",C19=\"Non applicable\"),0,1)","v":0},null,{"$f":"E19*2","v":0}]
["EP.2","Existe-t-il un  récent taux national d’incidence du VIH, ventilé par sexe et par âge, chez la popula­tion générale ? Si oui, donnez les précisions","Sélectionner",{"$f":"VLOOKUP(C20,Calc!$C$5:$D$9,2,FALSE)","v":""},{"$f":"IF(OR(C20=\"Sélectionner\",C20=\"Non applicable\"),0,1)","v":0},null,{"$f":"E20*2","v":0}]
["EP.3","Des estimations de la taille pour les populations clés existent-elles ? Veuillez fournir les détails","Sélectionner",{"$f":"VLOOKUP(C21,Calc!$C$5:$D$9,2,FALSE)","v":""},0,null,0]
["EP.4","Le taux de prévalence du VIH chez les populations clés existe t-il? Donnez les précisions","Sélectionner",{"$f":"VLOOKUP(C22,Calc!$C$49:$D$53,2,FALSE)","v":""},0,null,0]
["EP.5","Le taux de prévalence du VIH chez les populations clés sont-elles  ventilées par sexe et par âge? Veuillez donner les précisions; Préciser l’évolution dans le temps des taux de prévalence chez les populations clés (ventilés par sexe et par âge). ","Sélectionner",{"$f":"VLOOKUP(C23,Calc!$C$5:$D$9,2,FALSE)","v":""},{"$f":"IF(OR(C23=\"Sélectionner\",C23=\"Non applicable\"),0,1)","v":0},null,0]
["EP.6","Existe-t-il une étude des modes de transmission ? Si oui veuillez donner les modes de transmission du VIH pour les femmes, les filles, les hommes, les garçons et les transgenres ? ","Sélectionner",{"$f":"VLOOKUP(C24,Calc!$C$55:$D$58,2,FALSE)","v":""},{"$f":"IF(OR(C24=\"Sélectionner\",C24=\"Non applicable\"),0,1)","v":0},null,{"$f":"E24*1","v":0}]
["EP.7","Existe t-il des zones de forte incidence (par ex, des zones rurales ou urbaines ou des endroits spécifiques) ? Si oui, veuillez donner les précisions. Présenter les informations pour la population générale et la population clé, le cas échéant. ","Sélectionner",{"$f":"IFERROR(VLOOKUP(C25,Calc!$C$29:$D$33,2,FALSE)/E25,\"\")","v":""},0,null,{"$f":"E25*2","v":0}]
["EP.8","Existe t-il des données sur les grossesses non désirées chez les adolescentes célibataires ?  Si oui, veuillez donner les précisions","Sélectionner",{"$f":"IFERROR(VLOOKUP(C26,Calc!$C$29:$D$33,2,FALSE)/E26,\"\")","v":""},0,null,0]
["EP.9","Les politiques et les programmes de prévention du VIH font‑elles le lien entre la prévention des grossesses non désirées et la prévention du VIH ? ","Sélectionner",{"$f":"IFERROR(VLOOKUP(C27,Calc!$C$29:$D$33,2,FALSE)/E27,\"\")","v":""},0,null,0]
["EP.10","Existe-t-il des données disponibles sur la violence conjugale (VC), y compris les violences basées sur le genre ? ","Sélectionner",{"$f":"IFERROR(VLOOKUP(C28,Calc!$C$29:$D$33,2,FALSE)/E28,\"\")","v":""},0,null,0]
["EP.11","Existe-t-il  des données sur la stigmatisation et la discrimination envers les personnes vivant avec le VIH, à travers l’indicateur de la stigmatisation ? données ventilées par sexe et par âge","Sélectionner",{"$f":"IFERROR(VLOOKUP(C29,Calc!$C$29:$D$33,2,FALSE)/E29,\"\")","v":""},0,null,0]
[null,"SUIVI EVALUATION",null,{"$f":"IFERROR(SUM(D31+D35+D45+D49)/4,\"\")","v":""},{"$f":"SUM(E31:E34)*2","v":0}]
["S&E-1","Les indicateurs dans leur définition prennent-ils en compte les aspects genre",null,{"$f":"IFERROR(SUM(D32:D34)/(SUM(E32:E34)*2),\"\")","v":""}]
[null,"Les indicateurs prennent en compte les populations clés","Sélectionner",{"$f":"IFERROR(VLOOKUP(C32,Calc!$C$29:$D$33,2,FALSE)/E32,\"\")","v":""},{"$f":"IF(OR(C32=\"Sélectionner\",C32=\"Non applicable\"),0,1)","v":0}]
[null,"Les indicateurs sont désagrégées","Sélectionner",{"$f":"IFERROR(VLOOKUP(C33,Calc!$C$29:$D$33,2,FALSE)/E33,\"\")","v":""},{"$f":"IF(OR(C33=\"Sélectionner\",C33=\"Non applicable\"),0,1)","v":0}]
[null,"Les indicateurs permettent d'appréhender la sexospécificité et la vulnérabilité","Sélectionner",{"$f":"IFERROR(VLOOKUP(C34,Calc!$C$29:$D$33,2,FALSE)/E34,\"\")","v":""},{"$f":"IF(OR(C34=\"Sélectionner\",C34=\"Non applicable\"),0,1)","v":0}]
["S&E-2","Les outils de planification prennent-ils en compte les aspects genre",null,{"$f":"IFERROR(SUM(D36:D44)/E35,\"\")","v":""},{"$f":"SUM(E36:E44)*2","v":0},{"$f":"IFERROR(D35*2,\"\")","v":""}]
[null,"Criminalisation de la transmission ou de l’exposition au VIH, notamment de la transmission verticale (de la mère à l’enfant) (selon la base de données des lois sur les droits humains) ","Sélectionner",{"$f":"IFERROR(VLOOKUP(C36,Calc!$C$29:$D$33,2,FALSE)/E36,\"\")","v":""},{"$f":"IF(OR(C36=\"Sélectionner\",C36=\"Non applicable\"),0,1)","v":0}]
[null,"Criminalisation de l’orientation sexuelle et/ou de l’identité de genre (selon la base de données des lois sur les droits humains) ","Sélectionner",{"$f":"IFERROR(VLOOKUP(C37,Calc!$C$29:$D$33,2,FALSE)/E37,\"\")","v":""},0]
[null,"Criminalisation de la consommation de drogues (selon la base de données des lois sur les droits humains) ","Sélectionner",{"$f":"IFERROR(VLOOKUP(C38,Calc!$C$29:$D$33,2,FALSE)/E38,\"\")","v":""},0]
[null,"Criminalisation du commerce du sexe (selon la base de données des lois sur les droits humains) ","Sélectionner",{"$f":"IFERROR(VLOOKUP(C39,Calc!$C$29:$D$33,2,FALSE)/E39,\"\")","v":""},0]
[null,"Non‑reconnaissance de la violence ou discrimination basée sur le genre au sein du mariage ","Sélectionner",{"$f":"IFERROR(VLOOKUP(C40,Calc!$C$29:$D$33,2,FALSE)/E40,\"\")","v":""},0]
[null,"Contestation d’héritage et/ou de droits de propriété aux femmes ","Sélectionner",{"$f":"IFERROR(VLOOKUP(C41,Calc!$C$29:$D$33,2,FALSE)/E41,\"\")","v":""},0]
[null,"Restrictions de voyage liées au VIH/SIDA ","Sélectionner",{"$f":"IFERROR(VLOOKUP(C42,Calc!$C$29:$D$33,2,FALSE)/E42,\"\")","v":""},0]
[null,"Pratiques du mariage précoce et du mariage forcé ","Sélectionner",{"$f":"IFERROR(VLOOKUP(C43,Calc!$C$29:$D$33,2,FALSE)/E43,\"\")","v":""},0]
[null,"Mariages polygames ","Sélectionner",{"$f":"IFERROR(VLOOKUP(C44,Calc!$C$29:$D$33,2,FALSE)/E44,\"\")","v":""},0]
["S&E-3","Les outils de rapportage prennent-ils compte les aspects genre",null,{"$f":"IFERROR(SUM(D46:D48)/E45,\"\")","v":""},{"$f":"SUM(E46:E48)*2","v":0},{"$f":"IFERROR(D45*2,\"\")","v":""}]
[null,"Les outils de collecte des données prennent-ils en compte les données des populations clés?","Sélectionner",{"$f":"IFERROR(VLOOKUP(C46,Calc!$C$29:$D$33,2,FALSE)/E46,\"\")","v":""},{"$f":"IF(OR(C46=\"Sélectionner\",C46=\"Non applicable\"),0,1)","v":0}]
[null,"Les outils de collecte des données prennent-ils en compte les données désagrégées?","Sélectionner",{"$f":"IFERROR(VLOOKUP(C47,Calc!$C$29:$D$33,2,FALSE)/E47,\"\")","v":""},0]
[null,"La validation des données s'intéresse -t-elle au genre (sexospécificité et désagrégation)?","Sélectionner",{"$f":"IFERROR(VLOOKUP(C48,Calc!$C$29:$D$33,2,FALSE)/E48,\"\")","v":""},0]
["S&E-4","Les résultats contenu dans le rapport prennent-ils en compte les aspects genre",null,{"$f":"IFERROR(SUM(D50:D52)/E49,\"\")","v":""},{"$f":"SUM(E50:E52)*2","v":0},{"$f":"IFERROR(D49*2,\"\")","v":""}]
[null,"Les canevas de rapport permettent-ils de faire ressortir les aspects droits humains?","Sélectionner",{"$f":"IFERROR(VLOOKUP(C50,Calc!$C$29:$D$33,2,FALSE)/E50,\"\")","v":""},{"$f":"IF(OR(C50=\"Sélectionner\",C50=\"Non applicable\"),0,1)","v":0}]
[null,"Les canevas de rapport permettent-ils de faire ressortir les aspects genre?","Sélectionner",{"$f":"IFERROR(VLOOKUP(C51,Calc!$C$29:$D$33,2,FALSE)/E51,\"\")","v":""},0]
[null,"La révision et la validation des rapports s'interessent-ils au genre et aux droits humains?","Sélectionner",{"$f":"IFERROR(VLOOKUP(C52,Calc!$C$29:$D$33,2,FALSE)/E52,\"\")","v":""},0]

{"sheet":"2_SocEcoParticipation","index":2,"n_rows":30,"n_cols":7,"rows_kept":30,"merged":[[0,0,0,5],[17,1,17,2],[24,1,24,2]]}
["FACTEURS SOCIOECONOMIQUES, CULTURELS & PARICIPATION"]
{"$rows_empty":15}
[null,"QUESTION","REPONSE",null,null,"CONSTATS/EVIDENCES"]
["FECP.1",{"$f":"+UPPER(\"Facteurs sociaux, culturels et économiques\")","v":"FACTEURS SOCIAUX, CULTURELS ET ÉCONOMIQUES"},null,{"$f":"IFERROR(SUM(D19:D24)/E18,\"\")","v":""},{"$f":"SUM(G19:G24)","v":0},{"$f":"IFERROR(D18*é,\"\")","v":""}]
[null,"Quelles sont les normes et les pratiques socio‑culturelles qui peuvent contribuer à accroître le risque de transmission du VIH chez les femmes et les filles, les hommes et les garçons, et les transgenres, sont-elles prises en compte","Sélectionner",{"$f":"VLOOKUP(C19,Calc!$C$5:$D$9,2,FALSE)","v":""},{"$f":"IF(OR(C19=\"Sélectionner\",C19=\"Non applicable\"),0,1)","v":0},null,{"$f":"E19*2","v":0}]
[null,"Les normes et les pratiques socio‑culturelles contribuent‑elles à augmenter le risque de transmission du VIH ? Si oui, de quelle manière?","Sélectionner",{"$f":"VLOOKUP(C20,Calc!$C$5:$D$9,2,FALSE)","v":""},{"$f":"IF(OR(C20=\"Sélectionner\",C20=\"Non applicable\"),0,1)","v":0},null,{"$f":"E20*2","v":0}]
[null,"Certaines normes et pratiques socio‑culturelles contribuent‑elles à accroître le risque de transmission du VIH dans d’autres populations clés ? Si oui, quelles sont ces normes et pratiques ? ","Sélectionner",{"$f":"VLOOKUP(C21,Calc!$C$5:$D$9,2,FALSE)","v":""},0,null,0]
[null,"Les normes et pratiques socioculturelles contribuent‑elles à réduire le risque de transmission du VIH ? ","Sélectionner",{"$f":"VLOOKUP(C22,Calc!$C$5:$D$9,2,FALSE)","v":""},0,null,0]
[null,"Existent-ils des normes et des pratiques socio‑culturelles qui peuvent contribuer à réduire les écarts entre les sexes dans l’un des domaines évoqués (connaissances, utilisation du préservatif, stigmatisation, discrimination, grossesses précoces ou non désirées) ? Si oui lesquelles","Sélectionner",{"$f":"VLOOKUP(C23,Calc!$C$5:$D$9,2,FALSE)","v":""},0,null,0]
[null,"De quelle manière contribuent‑elles à augmenter le risque de transmission du VIH ? ","Sélectionner",{"$f":"VLOOKUP(C24,Calc!$F$11:$G$16,2,FALSE)","v":""},0,null,{"$f":"E24*3","v":0}]
["FECP.2",{"$f":"UPPER(\"Participation significative \")","v":"PARTICIPATION SIGNIFICATIVE "},null,{"$f":"IFERROR(SUM(D26:D30)/E25,\"\")","v":""},{"$f":"SUM(G26:G30)","v":0},{"$f":"IFERROR(D25*é,\"\")","v":""}]
[null,"Les réseaux et les organisations œuvrant pour les personnes vivant avec le VIH, les droits des femmes, la santé sexuelle et reproductive, l’égalité des sexes, la jeunesse et les autres populations clés, telles que les hommes homosexuels et les autres hommes ayant des rapports sexuels avec des hommes (HSH), les professionnels du sexe, les consommateurs de drogues injectables (CDI) et les transgenres, participent‑ils à la prise de décisions à différents stades ou niveaux et dans différents domaines de la lutte contre le VIH/SIDA du pays, y compris à la conception et à la mise en œuvre des interventions ? Veuillez différencier les groupes. Veuillez documenter les observations qui sont pertinentes dans une perspective sexospécifique concernant la participation de la société civile à la lutte contre le VIH/SIDA. ","Sélectionner",{"$f":"IFERROR(VLOOKUP(C26,Calc!$C$29:$D$33,2,FALSE)/E26,\"\")","v":""},{"$f":"IF(OR(C26=\"Sélectionner\",C26=\"Non applicable\"),0,1)","v":0},null,{"$f":"E26*2","v":0}]
[null,"Y a‑t‑il des mécanismes formels (par exemple des forums de partenariat, des groupes thématiques mixtes sur le VIH, des commissions/conseils nationaux sur le SIDA, un CCM) garantissant que les points de vue, les besoins et les droits de ces populations sont pris en compte dans les processus de prise de décision pour les interventions de lutte contre le VIH/SIDA ? Si oui, veuillez décrire ces mécanismes en mettant particulièrement l’accent sur les questions de genre et en donnant si possible des exemples. ","Sélectionner",{"$f":"IFERROR(VLOOKUP(C27,Calc!$C$29:$D$33,2,FALSE)/E27,\"\")","v":""},{"$f":"IF(OR(C27=\"Sélectionner\",C27=\"Non applicable\"),0,1)","v":0},null,0]
[null,"Des dispositions juridiques et politiques existe‑t‑ielles pour que ces populations accèdent à des finance­ments nationaux et/ou internationaux, pour le soutien des interventions nationales de la lutte contre le VIH/SIDA? Si oui, lesquelles","Sélectionner",{"$f":"IFERROR(VLOOKUP(C28,Calc!$C$29:$D$33,2,FALSE)/E28,\"\")","v":""},{"$f":"IF(OR(C28=\"Sélectionner\",C28=\"Non applicable\"),0,1)","v":0},null,0]
[null,"Des dispositions (juridiques, politiques, financières) existe‑t‑elles pour renforcer les capacités et allouer des ressources dans le but d’encourager la participation des femmes, des filles et des femmes transgenres aux interventions de lutte contre le VIH/SIDA ? Si oui, lesquelles","Sélectionner",{"$f":"IFERROR(VLOOKUP(C29,Calc!$C$29:$D$33,2,FALSE)/E29,\"\")","v":""},{"$f":"IF(OR(C29=\"Sélectionner\",C29=\"Non applicable\"),0,1)","v":0},null,0]
[null,"Une catégorie de population clé est‑elle dans l’incapacité – à cause des lois, des règlements ou des politiques – de s’engager dans les interventions nationales de lutte contre le VIH/SIDA ?","Sélectionner",{"$f":"IFERROR(VLOOKUP(C30,Calc!$C$61:$D$66,2,FALSE)/E30,\"\")","v":""},{"$f":"IF(OR(C30=\"Sélectionner\",C30=\"Non applicable\"),0,1)","v":0},null,{"$f":"E30*3","v":0}]

{"sheet":"3_Politiques","index":3,"n_rows":62,"n_cols":11,"rows_kept":62,"merged":[[0,0,0,6],[18,1,18,2],[19,0,27,0],[28,1,28,2],[29,0,37,0],[39,1,39,2],[40,0,48,0]]}
["EVALUATION DES FACTEURS POLITIQUES ET JURIDIQUES"]
{"$rows_empty":15}
[null,"QUESTION","REPONSE",{"$nulls":3},"CONSTATS/EVIDENCES"]
[null,"FACTEURS POLITIQUES ET JURIDIQUES",null,{"$f":"IFERROR((SUM(I19:I53)/SUM(J19:J53)),\"\")","v":""}]
["FP.1","Existe t il un cadre juridique ou politique pouvant avoir un impact direct sur les femmes et les filles, les hommes et les garçons, et les populations clés en ce qui concerne le VIH/SIDA, ce en s'attaquant aux points suivants:",null,{"$f":"IFERROR(SUM(D20:D28)/F19,\"\")","v":""},{"$f":"IFERROR(F19/F19,\"\")","v":""},{"$f":"SUM(F20:F28)","v":0},{"$f":"IFERROR(E19*2,\"\")","v":""},null,{"$f":"IF(D19=\"\",0,D19)","v":0},{"$f":"IF(D19=\"\",0,1)","v":0}]
[null,"La criminalisation de la transmission ou de l’exposition au VIH, notamment de la transmission verticale (de la mère à l’enfant) (selon la base de données des lois sur les droits humains) ","Sélectionner",{"$f":"VLOOKUP(C20,Calc!$C$5:$D$9,2,FALSE)","v":""},{"$f":"IF(OR(C20=\"Sélectionner\",C20=\"Non applicable\"),0,1)","v":0},{"$f":"E20*2","v":0}]
[null,"La criminalisation de l’orientation sexuelle et/ou de l’identité de genre (selon la base de données des lois sur les droits humains) ","Sélectionner",{"$f":"VLOOKUP(C21,Calc!$C$5:$D$9,2,FALSE)","v":""},{"$f":"IF(OR(C21=\"Sélectionner\",C21=\"Non applicable\"),0,1)","v":0},0]
[null,"La criminalisation de la consommation de drogues (selon la base de données des lois sur les droits humains) ","Sélectionner",{"$f":"VLOOKUP(C22,Calc!$C$5:$D$9,2,FALSE)","v":""},0,0]
[null,"La criminalisation du commerce du sexe (selon la base de données des lois sur les droits humains) ","Sélectionner",{"$f":"VLOOKUP(C23,Calc!$C$5:$D$9,2,FALSE)","v":""},0,0]
[null,"Aux violences ou discrimination basée sur le genre au sein du mariage ","Sélectionner",{"$f":"VLOOKUP(C24,Calc!$C$5:$D$9,2,FALSE)","v":""},0,0]
[null,"La contestation d’héritage et/ou de droits de propriété aux femmes ","Sélectionner",{"$f":"VLOOKUP(C25,Calc!$C$5:$D$9,2,FALSE)","v":""},0,0]
[null,"Les restrictions de voyage liées au VIH/SIDA ","Sélectionner",{"$f":"VLOOKUP(C26,Calc!$C$5:$D$9,2,FALSE)","v":""},0,0]
[null,"Aux pratiques du mariage précoce et du mariage forcé ","Sélectionner",{"$f":"VLOOKUP(C27,Calc!$C$5:$D$9,2,FALSE)","v":""},0,0]
[null,"Aux mariages précoces ","Sélectionner",{"$f":"VLOOKUP(C28,Calc!$C$5:$D$9,2,FALSE)","v":""},0,0]
["FP.2","Y a t il des cadres juridiques qui protègent spécifiquement les droits des personnes vivant avec le VIH, des femmes et des filles, et d’autres populations clés dans le pays en termes de ",null,{"$f":"IFERROR(SUM(D30:D38)/F29,\"\")","v":""},{"$f":"IFERROR(SUM(H30:H38)/F29,\"\")","v":""},{"$f":"SUM(F30:F38)","v":0},null,null,{"$f":"IF(D29=\"\",0,D29)","v":0},{"$f":"IF(D29=\"\",0,1)","v":0}]
[null,"Droit de la famille et droit de la propriété (mariage, cohabitation, séparation, divorce, garde des enfants, propriété, héritage, etc.) ","Sélectionner",{"$f":"VLOOKUP(C30,Calc!$C$11:$D$15,2,FALSE)","v":""},{"$f":"IF(OR(C30=\"Sélectionner\",C30=\"Non applicable\"),0,1)","v":0},{"$f":"IF(OR(C30=\"Sélectionner\",D30=\"Non applicable\"),0,1)*2","v":0},null,{"$f":"E30*2","v":0}]
[null,"Droits concernant l’accès aux soins de santé (services de santé, accès à l’information sur la santé, TAR, préser­vatifs et prophylaxie post‑exposition, etc.) en vertu de la législation nationale ","Sélectionner",{"$f":"VLOOKUP(C31,Calc!$C$11:$D$15,2,FALSE)","v":""},{"$f":"IF(OR(C31=\"Sélectionner\",C31=\"Non applicable\"),0,1)","v":0},{"$f":"IF(OR(C31=\"Sélectionner\",D31=\"Non applicable\"),0,1)*2","v":0},null,{"$f":"E31*2","v":0}]
[null,"Cadres juridiques concernant les droits sexuels et reproductifs ","Sélectionner",{"$f":"VLOOKUP(C32,Calc!$C$11:$D$15,2,FALSE)","v":""},0,0,null,0]
[null,"Lois garantissant une éducation sexuelle complète sans stigmatisation ni discrimination ","Sélectionner",{"$f":"VLOOKUP(C33,Calc!$C$11:$D$15,2,FALSE)","v":""},0,0,null,0]
[null,"Législation sur les relations de travail et la sécurité sociale ","Sélectionner",{"$f":"VLOOKUP(C34,Calc!$C$11:$D$15,2,FALSE)","v":""},0,0,null,0]
[null,"Lois garantissant le caractère volontaire et confidentiel des services liés au VIH, tels que le conseil et le dépistage ","Sélectionner",{"$f":"VLOOKUP(C35,Calc!$C$11:$D$15,2,FALSE)","v":""},0,0,null,0]
[null,"Criminalisation de la violence conjugale ","Sélectionner",{"$f":"VLOOKUP(C36,Calc!$C$11:$D$15,2,FALSE)","v":""},0,0,null,0]
[null,"Criminalisation du mariage précoce et forcé ","Sélectionner",{"$f":"VLOOKUP(C37,Calc!$C$11:$D$15,2,FALSE)","v":""},0,0,null,0]
[null,"Droits des migrants","Sélectionner",{"$f":"VLOOKUP(C38,Calc!$C$11:$D$15,2,FALSE)","v":""},0,{"$f":"IF(OR(C38=\"Sélectionner\",D38=\"Non applicable\"),0,1)*2","v":0},null,0]
["FP.3","Certains éléments indiquent ils que ces lois ne sont pas mises en œuvre de manière intégrale et impartiale, par exemple pour les femmes et les hommes, pour les transgenres, pour les populations clés, pour les personnes vivant avec le VIH ? ","Sélectionner",{"$f":"IFERROR(VLOOKUP(C39,Calc!$C$17:$D$21,2,FALSE)/E39,\"\")","v":""},{"$f":"IF(OR(C39=\"Sélectionner\",C39=\"Non applicable\"),0,1)*2","v":0},{"$f":"IF(OR(C39=\"Sélectionner\",D39=\"Non applicable\"),0,1)","v":0},null,{"$f":"F39*2","v":0},{"$f":"IF(D39=\"\",0,D39)","v":0},{"$f":"IF(D39=\"\",0,1)","v":0}]
["FP.4","Les lois et les politiques existantes se traduisent elles par un accès égal aux services pour les femmes, les filles, les hommes, les garçons et les populations clés, en termes de ",null,{"$f":"IFERROR(SUM(D41:D49)/F40,\"\")","v":""},{"$f":"F40","v":0},{"$f":"SUM(F41:F49)","v":0},null,null,0,0]
[null,"Services relatifs aux droits sexuels et reproductifs et à la santé sexuelle et reproductive ","Sélectionner",{"$f":"IFERROR(VLOOKUP(C41,Calc!$C$23:$D$27,2,FALSE)/E41,\"\")","v":""},{"$f":"IF(OR(C41=\"Sélectionner\",C41=\"Non applicable\"),0,1)*2","v":0},{"$f":"IF(OR(C41=\"Sélectionner\",D41=\"Non applicable\"),0,1)*1","v":0},null,0]
[null,"Information sur les services de santé disponibles ","Sélectionner",{"$f":"IFERROR(VLOOKUP(C42,Calc!$C$23:$D$27,2,FALSE)/E42,\"\")","v":""},{"$f":"IF(OR(C42=\"Sélectionner\",C42=\"Non applicable\"),0,1)*2","v":0},{"$f":"IF(OR(C42=\"Sélectionner\",D42=\"Non applicable\"),0,1)*1","v":0},null,0]
[null,"Produits pour la prévention du VIH (préservatifs masculins et féminins, pratiques de réduction des risques) ","Sélectionner",{"$f":"IFERROR(VLOOKUP(C43,Calc!$C$23:$D$27,2,FALSE)/E43,\"\")","v":""},0,0,null,0]
[null,"Prophylaxie post‑exposition (PEP) ","Sélectionner",{"$f":"IFERROR(VLOOKUP(C44,Calc!$C$23:$D$27,2,FALSE)/E44,\"\")","v":""},0,0,null,0]
[null,"Soutien psychosocial aux personnes vivant avec le VIH ","Sélectionner",{"$f":"IFERROR(VLOOKUP(C45,Calc!$C$23:$D$27,2,FALSE)/E45,\"\")","v":""},0,0,null,0]
[null,"Éducation sexuelle complète ","Sélectionner",{"$f":"IFERROR(VLOOKUP(C46,Calc!$C$23:$D$27,2,FALSE)/E46,\"\")","v":""},0,0,null,0]
[null,"Protection sociale ","Sélectionner",{"$f":"IFERROR(VLOOKUP(C47,Calc!$C$23:$D$27,2,FALSE)/E47,\"\")","v":""},0,0,null,0]
[null,"Éducation ","Sélectionner",{"$f":"IFERROR(VLOOKUP(C48,Calc!$C$23:$D$27,2,FALSE)/E48,\"\")","v":""},0,0,null,0]
[null,"Travail ","Sélectionner",{"$f":"IFERROR(VLOOKUP(C49,Calc!$C$23:$D$27,2,FALSE)/E49,\"\")","v":""},0,0,null,0]
["FP.5","Les pouvoirs publics, tant le pouvoir exécutif que législatif, oeuvrent ils à la mise en oeuvre des décla¬rations et traités internationaux dont le pays est signataire ? Veuillez donner des exemples de lois approuvées et de services fournis conformément aux engagements signés dans la Déclaration politique de 2011 concernant le VIH/ SIDA, la Déclaration de Pékin et la Convention sur l’élimination de toutes les formes de discrimination à l’égard des femmes","Sélectionner",{"$f":"IFERROR(VLOOKUP(C50,Calc!$C$29:$D$33,2,FALSE)/E50,\"\")","v":""},{"$f":"IF(OR(C50=\"Sélectionner\",C50=\"Non applicable\"),0,1)*2","v":0},{"$f":"IF(OR(C50=\"Sélectionner\",D50=\"Non applicable\"),0,1)","v":0},null,0,{"$f":"IF(D50=\"\",0,D50)","v":0},{"$f":"IF(D50=\"\",0,1)","v":0}]
["FP.6","Y a t il des signes de lutte contre les pratiques discriminatoires ou coercitives dans les établissements de soins de santé qui pourraient influer sur l’accès et l’utilisation des services liés au VIH par les femmes vivant avec le VIH, y compris celles issues des populations clés et marginalisées ? ","Sélectionner",{"$f":"IFERROR(VLOOKUP(C51,Calc!$C$29:$D$33,2,FALSE)/E51,\"\")","v":""},{"$f":"IF(OR(C51=\"Sélectionner\",C51=\"Non applicable\"),0,1)*2","v":0},{"$f":"IF(OR(C51=\"Sélectionner\",D51=\"Non applicable\"),0,1)","v":0},null,0,0,0]
["FP.7","Y a t il des signes de lutte contre les pratiques discriminatoires dans la magistrature et de la part des agents de la force publique (y compris la police) qui pourraient empêcher les femmes, les filles, ou n’importe quelle autre population clé ou marginalisée d’accéder à leurs droits ? ","Sélectionner",{"$f":"IFERROR(VLOOKUP(C52,Calc!$C$29:$D$33,2,FALSE)/E52,\"\")","v":""},{"$f":"IF(OR(C52=\"Sélectionner\",C52=\"Non applicable\"),0,1)*2","v":0},0,null,0,0,0]
["FP.8","Le pourcentage de femmes dans les organes législatifs (parlement/sénat) est-il significatif ? Quel est le pourcentage de femmes au gouvernement (y compris dans les entités qui lui sont rattachées) ? ","Sélectionner",{"$f":"IFERROR(VLOOKUP(C53,Calc!$C$41:$D$46,2,FALSE)/E53,\"\")","v":""},{"$f":"IF(OR(C53=\"Sélectionner\",C53=\"Non applicable\"),0,1)*3","v":0},0,null,0,0,0]
[null,"EGALITE DU GENRE",null,{"$f":"IFERROR(SUM(D55:D62)/E54,\"\")","v":""},{"$f":"SUM(E55:E62)","v":0},{"$f":"SUM(F55:F62)","v":0}]
[null,"Existe-t-il une politique/directive nationale relative à l’égalité des sexes sur laquelle s'appuient les interventions nationales de lutte contre le VIH/SIDA s ? Si oui, fournir des détails","Sélectionner",{"$f":"IFERROR(VLOOKUP(C55,Calc!$C$11:$D$15,2,FALSE),\"\")","v":""},{"$f":"IF(OR(C55=\"Sélectionner\",C55=\"Non applicable\"),0,1)*2","v":0},{"$f":"IF(OR(C55=\"Sélectionner\",D55=\"Non applicable\"),0,1)","v":0}]
[null,"L'élaboration de la politique/directive a t‑elle été guidée par l’Agenda de l’ONUSIDA pour une action accélérée des pays en faveur des femmes, des filles et de l’égalité entre les sexes dans le contexte du VIH/SIDA ? ","Sélectionner",{"$f":"IFERROR(VLOOKUP(C56,Calc!$C$11:$D$15,2,FALSE),\"\")","v":""},0,{"$f":"IF(OR(C56=\"Sélectionner\",D56=\"Non applicable\"),0,1)","v":0}]
[null,"La politique de lutte contre le VIH/SIDA reflète‑t‑elle un engagement en faveur de l’égalité des sexes ? ","Sélectionner",{"$f":"IFERROR(VLOOKUP(C57,Calc!$C$11:$D$15,2,FALSE),\"\")","v":""},0,0]
[null," Cet engagement se traduit‑il par une prise en compte des aspects suivants dans le cadre de la lutte contre le VIH/SIDA : ","Sélectionner",{"$f":"IFERROR(VLOOKUP(C58,Calc!$C$11:$D$15,2,FALSE),\"\")","v":""},0,0]
[null,"Les inégalités entre les femmes/filles (y compris les femmes transgenres) et les hommes/garçons sont-elles prises en compte et reflétées de manière concrête dans la réponse nationale? ","Sélectionner",{"$f":"IFERROR(VLOOKUP(C59,Calc!$C$11:$D$15,2,FALSE),\"\")","v":""},0,0]
[null,"A t-on pris en compte la stigmatisation et discrimination des personnes vivant avec le VIH, notamment des femmes et des filles vivant avec le VIH (y compris les femmes transgenres), dans les services de santé en lien ou non avec le VIH ainsi que les services sociaux et judiciaires ? ","Sélectionner",{"$f":"IFERROR(VLOOKUP(C60,Calc!$C$11:$D$15,2,FALSE),\"\")","v":""},0,0]
[null,"Existe-t-il une stigmatisation et discrimination à l’encontre des populations clés ? ","Sélectionner",{"$f":"IFERROR(VLOOKUP(C61,Calc!$C$41:$D$46,2,FALSE),\"\")","v":""},{"$f":"IF(OR(C61=\"Sélectionner\",C61=\"Non applicable\"),0,1)*3","v":0},0,{"$nulls":4},{"$f":"IFERROR(D61/E61,\"\")","v":""}]
[null,"L'engagement se traduit‑il par l’allocation d’un budget permettant de prendre des initiatives et de proposer des services tenant compte des sexospécifiques et influant sur l’égalité des sexes ? Veuillez donner des exemples","Sélectionner",{"$f":"IFERROR(VLOOKUP(C62,Calc!$C$68:$D$73,2,FALSE),\"\")","v":{"v":0,"d":"0.0"}},{"$f":"IF(OR(C62=\"Sélectionner\",C62=\"Non applicable\"),0,1)*3","v":0},0,{"$nulls":4},{"$f":"IFERROR(D62/E62,\"\")","v":""}]

{"sheet":"4_Programme","index":4,"n_rows":34,"n_cols":11,"rows_kept":34,"merged":[[0,0,0,6],[18,1,18,2],[21,1,21,2],[22,0,27,0]]}
["EVALUATION DES PROGRAMMES"]
{"$rows_empty":15}
[null,"QUESTION","REPONSE",{"$nulls":3},"CONSTATS/EVIDENCES"]
[null,"PROGRAMME",null,{"$f":"IFERROR(H18/I18,0)","v":{"v":0,"d":"0.0"}},{"$f":"SUM(E19:E34)","v":0},{"$f":"SUM(F23:F34)+F20+F21","v":{"$error":"#VALUE!"}},{"$f":"SUM(G19:G26)","v":0},{"$f":"SUM(H19:H34)","v":{"$error":"#VALUE!"}},{"$f":"SUM(I19:I34)","v":{"$error":"#VALUE!"}},{"$f":"IF(D18=\"\",0,1)","v":1}]
["P.1","Quelles populations les interventions nationales de lutte contre le VIH/SIDA visent elles ? Veuillez ventiler les données par âge, par sexe, par identité de genre ou orientation sexuelle, le cas échéant",null,{"$f":"IFERROR(SUM(D20:D21)/E19,\"\")","v":""},{"$f":"SUM(E20:E21)*2","v":0},{"$f":"IFERROR(D19*2,0)","v":0},null,{"$f":"IF(D19=\"\",0,D19)","v":0},{"$f":"IF(D19=\"\",0,D19)","v":0},0]
[null,"Les interventions nationales de lutte contre le VIH/SIDA incluent‑elles les personnes handicapées ? Si oui, y a‑t‑il des programmes spécifiquement conçus pour les personnes handicapées ? Ces interventions répondent‑elles différemment aux besoins des hommes/garçons et à ceux des femmes/filles ? ","Sélectionner",{"$f":"VLOOKUP(C20,Calc!$F$5:$G$9,2,FALSE)","v":""},{"$f":"IF(OR(C20=\"Sélectionner\",C20=\"Non applicable\"),0,1)","v":0},{"$f":"IF(OR(C20=\"Sélectionner\",D20=\"Non applicable\"),0,1)","v":0}]
[null,"Les interventions nationales de lutte contre le VIH/SIDA incluent‑elles les personnes âgées, en particulier les femmes âgées ","Sélectionner",{"$f":"VLOOKUP(C21,Calc!$F$5:$G$9,2,FALSE)","v":""},{"$f":"IF(OR(C21=\"Sélectionner\",C21=\"Non applicable\"),0,1)","v":0},{"$f":"IF(OR(C21=\"Sélectionner\",D21=\"Non applicable\"),0,1)","v":0}]
["P.2","Les interventions de lutte contre le VIH/SIDA reconnaissent elles, prennent elles en compte et abordent elles les questions de genre liées aux éléments suivants ",null,{"$f":"IFERROR(SUM(D23:D28)/F22,\"\")","v":""},null,{"$f":"SUM(F23:F28)","v":0},{"$f":"IFERROR((SUM(D23:D28)/SUM(F23:F28))*2,\"\")","v":""},{"$f":"IF(D22=\"\",0,D22)","v":0},{"$f":"IF(D22=\"\",0,D22)","v":0},{"$f":"IF(D22=\"\",0,1)","v":0}]
[null,"Spécificités rurales/urbaines ","Sélectionner",{"$f":"VLOOKUP(C23,Calc!$C$5:$D$9,2,FALSE)","v":""},{"$f":"IF(OR(C23=\"Sélectionner\",C23=\"Non applicable\"),0,1)","v":0},{"$f":"IF(OR(C23=\"Sélectionner\",D23=\"Non applicable\"),0,1)*2","v":0}]
[null,"Statut socio‑économique ","Sélectionner",{"$f":"VLOOKUP(C24,Calc!$C$5:$D$9,2,FALSE)","v":""},0,0]
[null,"Migration forcée et/ou volontaire ","Sélectionner",{"$f":"VLOOKUP(C25,Calc!$C$5:$D$9,2,FALSE)","v":""},0,0]
[null,"Mariage précoce ou forcé ","Sélectionner",{"$f":"VLOOKUP(C26,Calc!$C$5:$D$9,2,FALSE)","v":""},0,0]
[null,"Origine ethnique ","Sélectionner",{"$f":"VLOOKUP(C27,Calc!$C$5:$D$9,2,FALSE)","v":""},0,0]
[null,"Incapacités liées au VIH ","Sélectionner",{"$f":"VLOOKUP(C28,Calc!$C$5:$D$9,2,FALSE)","v":""},0,0]
["P.3","Les problèmes liés à l’identité de genre et à l’orientation sexuelle ont‑ils été reconnus dans la politique/stratégie sur le VIH ? ","Sélectionner",{"$f":"IFERROR(VLOOKUP(C29,Calc!$C$29:$D$33,2,FALSE)/E29,\"\")","v":""},{"$f":"IF(OR(C29=\"Sélectionner\",C29=\"Non applicable\"),0,1)*2","v":0},{"$f":"IF(OR(C29=\"Sélectionner\",D29=\"Non applicable\"),0,1)*1","v":0},null,{"$f":"IF(D29=\"\",0,D29)","v":0},{"$f":"IF(D29=\"\",0,D29)","v":0},{"$f":"IF(D29=\"\",0,1)","v":0},{"$f":"IFERROR(D29*2,\"\")","v":""}]
["P.4","Si oui, quelles sont les recommandations en matière de services liés au VIH concernant la stigmatisation, la discri­mination et les droits humains ? ","Sélectionner",{"$f":"IFERROR(VLOOKUP(C30,Calc!$C$29:$D$33,2,FALSE)/E30,\"\")","v":""},{"$f":"IF(OR(C30=\"Sélectionner\",C30=\"Non applicable\"),0,1)*2","v":0},{"$f":"IF(OR(C30=\"Sélectionner\",D30=\"Non applicable\"),0,1)*1","v":0},null,0,{"$f":"IF(D30=\"\",0,D30)","v":0},0]
["P.5","Dans quelle mesure les interventions nationales de lutte contre le VIH/SIDA sont‑elles financées par des sources nationales  ? ","Sélectionner",{"$f":"VLOOKUP(C31,Calc!$F$11:$G$16,2,FALSE)/E31","v":{"$error":"#VALUE!"}},{"$f":"IF(OR(C31=\"Sélectionner\",C31=\"Non applicable\"),0,1)*3","v":0},{"$f":"IF(OR(C31=\"Sélectionner\",D31=\"Non applicable\"),0,1)*3","v":{"$error":"#VALUE!"}},null,{"$error":"#VALUE!"},{"$f":"IF(D31=\"\",0,D31)","v":{"$error":"#VALUE!"}},{"$error":"#VALUE!"}]
["P.5 (bis)","Dans quelle mesure les interventions nationales de lutte contre le VIH/SIDA sont‑elles financées par des sources externes ? ","Sélectionner",{"$f":"VLOOKUP(C32,Calc!$F$11:$G$16,2,FALSE)/E32","v":{"$error":"#VALUE!"}},{"$f":"IF(OR(C32=\"Sélectionner\",C32=\"Non applicable\"),0,1)*3","v":0},{"$f":"IF(OR(C32=\"Sélectionner\",D32=\"Non applicable\"),0,1)*3","v":{"$error":"#VALUE!"}},null,{"$error":"#VALUE!"},{"$error":"#VALUE!"},{"$error":"#VALUE!"}]
["P.6","Les interventions nationales de lutte contre le VIH/SIDA comprennent‑elles déjà des interventions en matière d’égalité des sexes ? Si oui, comment ces interventions sont‑elles financées ? ","Sélectionner",{"$f":"IFERROR(VLOOKUP(C33,Calc!$C$29:$D$33,2,FALSE)/E33,\"\")","v":""},{"$f":"IF(OR(C33=\"Sélectionner\",C33=\"Non applicable\"),0,1)*2","v":0},{"$f":"IF(OR(C33=\"Sélectionner\",D33=\"Non applicable\"),0,1)*1","v":0},null,0,0,0]
["P.7","Existe‑t‑il un système officiel de responsabilisation pour les interventions de lutte contre le VIH/SIDA qui permet à la société civile, aux agences des Nations Unies et aux citoyens de surveiller les dépenses consacrées à la prise en compte de la dimension de genre dans les interventions de lutte contre le VIH/SIDA ? Si oui, comment fonctionne‑t‑il ? ","Sélectionner",{"$f":"IFERROR(VLOOKUP(C34,Calc!$C$29:$D$33,2,FALSE)/E34,\"\")","v":""},{"$f":"IF(OR(C34=\"Sélectionner\",C34=\"Non applicable\"),0,1)*2","v":0},{"$f":"IF(OR(C34=\"Sélectionner\",D34=\"Non applicable\"),0,1)*1","v":0},null,0,0,0]

{"sheet":"5_Coordination","index":5,"n_rows":29,"n_cols":10,"rows_kept":29,"merged":[[0,0,0,6]]}
["COORDINATION & PARTICIPATION"]
{"$rows_empty":15}
[null,"QUESTION","REPONSE",{"$nulls":3},"CONSTATS/EVIDENCES"]
[null,"COORDINATION DES PROGRAMMES GENRE ET DROITS HUMAINS",null,{"$f":"IFERROR(SUM(D19:D24)/E18,\"\")","v":""},{"$f":"SUM(E19:E24)","v":0},{"$f":"SUM(F19:F24)","v":0},null,{"$f":"F18*2","v":0},{"$f":"IF(D18=\"\",0,D18)","v":0},{"$f":"IF(D18=\"\",0,1)","v":0}]
[null,"Existe un groupe genre et VIH","Sélectionner",{"$f":"VLOOKUP(C19,Calc!$F$5:$G$9,2,FALSE)","v":""},{"$f":"IF(OR(C19=\"Sélectionner\",C19=\"Non applicable\"),0,1)*2","v":0},{"$f":"IF(OR(C19=\"Sélectionner\",D19=\"Non applicable\"),0,1)*2","v":0}]
[null,"Ce groupe prend t-il en compte les droits humains","Sélectionner",{"$f":"VLOOKUP(C20,Calc!$F$5:$G$9,2,FALSE)","v":""},0,{"$f":"IF(OR(C20=\"Sélectionner\",D20=\"Non applicable\"),0,1)*2","v":0}]
[null,"Les capacités des membres de ce groupe ont-elles été renforcées","Sélectionner",{"$f":"VLOOKUP(C21,Calc!$C$5:$D$9,2,FALSE)","v":""},0,0]
[null,"Le groupe fonctionne t-il régulièrement","Sélectionner",{"$f":"VLOOKUP(C22,Calc!$C$5:$D$9,2,FALSE)","v":""},0,0]
[null,"Le groupe genre et droits humains produit-il des rapports périodiques?","Sélectionner",{"$f":"VLOOKUP(C23,Calc!$C$5:$D$9,2,FALSE)","v":""},0,0]
[null,"Le groupe genre et droits humainsfait-il une analyse des rapports périodiques sous l'angle du genre et des droits humains,","Sélectionner",{"$f":"VLOOKUP(C24,Calc!$C$5:$D$9,2,FALSE)","v":""},0,0]
[null,"COORDINATION DES INTERVENTIONS",null,{"$f":"IFERROR(SUM(D26:D29)/E25,\"\")","v":""},{"$f":"SUM(E26:E29)","v":0}]
[null,"Le mécanisme national de coordination sur le VIH met‑il particulièrement l’accent sur l’égalité des sexes ? Si oui, indiquez comment. ","Sélectionner",{"$f":"VLOOKUP(C26,Calc!$C$5:$D$9,2,FALSE)","v":""},{"$f":"IF(OR(C26=\"Sélectionner\",C26=\"Non applicable\"),0,1)*2","v":0},{"$f":"IF(OR(C26=\"Sélectionner\",D26=\"Non applicable\"),0,1)","v":0}]
[null,"Existe‑t‑il d’autres mécanismes de coordination dans différents secteurs gouvernementaux (condition féminine, santé, droits humains, etc.) et à différents niveaux permettant d’agir conjointement en faveur de la prise en compte de l’égalité des sexes dans les interventions nationales de lutte contre le VIH/SIDA ? ","Sélectionner",{"$f":"VLOOKUP(C27,Calc!$C$5:$D$9,2,FALSE)","v":""},{"$f":"IF(OR(C27=\"Sélectionner\",C27=\"Non applicable\"),0,1)*2","v":0},{"$f":"IF(OR(C27=\"Sélectionner\",D27=\"Non applicable\"),0,1)","v":0}]
[null,"La société civile est‑elle officiellement impliquée dans l’un des mécanismes de coordination précé­demment cités, en particulier les réseaux de personnes vivant avec le VIH, les représentants des populations clés identifiées et les groupes qui travaillent sur les questions liées à l’égalité des sexes et aux droits des femmes ? ","Sélectionner",{"$f":"VLOOKUP(C28,Calc!$C$5:$D$9,2,FALSE)","v":""},{"$f":"IF(OR(C28=\"Sélectionner\",C28=\"Non applicable\"),0,1)*2","v":0},{"$f":"IF(OR(C28=\"Sélectionner\",D28=\"Non applicable\"),0,1)","v":0}]
[null,"Existe‑t‑il, au sein de la société civile, des mécanismes de coordination sur le VIH et le genre, et si oui, quels sont les groupes impliqués ?","Sélectionner",{"$f":"VLOOKUP(C29,Calc!$C$5:$D$9,2,FALSE)","v":""},{"$f":"IF(OR(C29=\"Sélectionner\",C29=\"Non applicable\"),0,1)*2","v":0},{"$f":"IF(OR(C29=\"Sélectionner\",D29=\"Non applicable\"),0,1)","v":0}]

{"sheet":"6_Eval-CSN","index":6,"n_rows":40,"n_cols":10,"rows_kept":40,"merged":[[0,0,0,6],[18,0,24,0],[26,0,38,0]]}
["PLANIFICATION ET MISE EN ŒUVRE"]
{"$rows_empty":15}
[{"$nulls":3},"Prévision dans le CSN",{"$f":"E18*2","v":1.5},null,null,"Niveau de réalisation",{"$f":"I18*2","v":{"$error":"#VALUE!"}}]
["Planification/ realisation concernant les Droits humains, prennent en compte les points suivants ? (prévision du CSN et dans les réalisations)",{"$nulls":3},{"$f":"IFERROR(SUM(E19:E25)/F18,\"\")","v":0.75},{"$f":"SUM(F19:F25)*2","v":4},null,null,{"$f":"IFERROR(SUM(I19:I25)/J18,\"\")","v":""},{"$f":"SUM(J19:J25)*3","v":0}]
[null,"Réduction de la stigmatisation et de la discrimination ",null,"Oui, en partie seulement",{"$f":"VLOOKUP(D19,Calc!$F$26:$G$30,2,FALSE)","v":1},{"$f":"IF(OR(D19=\"Sélectionner\",D19=\"Non applicable\"),0,1)","v":1},null,"Sélectionner",{"$f":"VLOOKUP(H19,Calc!$F$32:$G$37,2,FALSE)","v":""},{"$f":"IF(OR(H19=\"Sélectionner\",H19=\"Non applicable\"),0,1)","v":0}]
[null,"Services juridiques liés au VIH ",null,"Sélectionner",{"$f":"VLOOKUP(D20,Calc!$F$26:$G$30,2,FALSE)","v":""},{"$f":"IF(OR(D20=\"Sélectionner\",D20=\"Non applicable\"),0,1)","v":0},null,"Sélectionner",{"$f":"VLOOKUP(H20,Calc!$F$32:$G$37,2,FALSE)","v":""},{"$f":"IF(OR(H20=\"Sélectionner\",H20=\"Non applicable\"),0,1)","v":0}]
[null,"Contrôle et réforme des lois, règlements et politiques liés au VIH 8",null,"Sélectionner",{"$f":"VLOOKUP(D21,Calc!$F$26:$G$30,2,FALSE)","v":""},0,null,"Sélectionner",{"$f":"VLOOKUP(H21,Calc!$F$32:$G$37,2,FALSE)","v":""},0]
[null,"Education juridique (“connaître ses droits”) ",null,"Sélectionner",{"$f":"VLOOKUP(D22,Calc!$F$26:$G$30,2,FALSE)","v":""},0,null,"Sélectionner",{"$f":"VLOOKUP(H22,Calc!$F$32:$G$37,2,FALSE)","v":""},0]
[null,"Sensibilisation des législateurs et agents des forces de l’ordre ",null,"Sélectionner",{"$f":"VLOOKUP(D23,Calc!$F$26:$G$30,2,FALSE)","v":""},0,null,"Sélectionner",{"$f":"VLOOKUP(H23,Calc!$F$32:$G$37,2,FALSE)","v":""},0]
[null,"Formation des personnels de santé aux droits de l’homme et à l’éthique médicale liée au VIH ",null,"Oui, en intégralité",{"$f":"VLOOKUP(D24,Calc!$F$26:$G$30,2,FALSE)","v":2},1,null,"Sélectionner",{"$f":"VLOOKUP(H24,Calc!$F$32:$G$37,2,FALSE)","v":""},0]
[null,"Réduire les normes sexospécifiques néfastes et la violence contre les femmes e augmenter leur autonomisation juridique, sociale et économique dans le contexte du VIH",null,"Sélectionner",{"$f":"VLOOKUP(D25,Calc!$F$26:$G$30,2,FALSE)","v":""},0,null,"Sélectionner",{"$f":"VLOOKUP(H25,Calc!$F$32:$G$37,2,FALSE)","v":""},0]
["Planification/ realisation concernant le Genre prennent en compte les points suivants ? (prévision du CSN et dans les réalisations)",{"$nulls":3},{"$f":"IFERROR(SUM(E27:E39)/F26,\"\")","v":""},{"$f":"SUM(F27:F39)*2","v":0},null,null,{"$f":"IFERROR(SUM(I27:I39)/J26,\"\")","v":""},{"$f":"SUM(J27:J39)*3","v":0}]
[null,"Des activités adaptées aux besoins, aux rôles et aux dynamiques sociales du groupe-cible",null,"Sélectionner",{"$f":"VLOOKUP(D27,Calc!$F$26:$G$30,2,FALSE)","v":""},{"$f":"IF(OR(D27=\"Sélectionner\",D27=\"Non applicable\"),0,1)","v":0},null,"Sélectionner",{"$f":"VLOOKUP(H27,Calc!$F$32:$G$37,2,FALSE)","v":""},{"$f":"IF(OR(H27=\"Sélectionner\",H27=\"Non applicable\"),0,1)","v":0}]
[null,"Besoin des populations vulnérables dans la prévention",null,"Sélectionner",{"$f":"VLOOKUP(D28,Calc!$F$26:$G$30,2,FALSE)","v":""},0,null,"Sélectionner",{"$f":"VLOOKUP(H28,Calc!$F$32:$G$37,2,FALSE)","v":""},0]
[null,"Besoin des populations clés dans le dépistage et soins des IST",null,"Sélectionner",{"$f":"VLOOKUP(D29,Calc!$F$26:$G$30,2,FALSE)","v":""},0,null,"Sélectionner",{"$f":"VLOOKUP(H29,Calc!$F$32:$G$37,2,FALSE)","v":""},0]
[null,"Protection des groupes cibles contre les risques de VBG",null,"Sélectionner",{"$f":"VLOOKUP(D30,Calc!$F$26:$G$30,2,FALSE)","v":""},0,null,"Sélectionner",{"$f":"VLOOKUP(H30,Calc!$F$32:$G$37,2,FALSE)","v":""},0]
[null,"Promotion de l'égalité de genre et un accès équitable : les Femmes, Filles, Garçons et Hommes dans différents groupes d'âge bénéficient d’une assistance reçue qui correspond à leurs différents besoins et à leurs droits (qualitatifs et quantitatifs);Accèdent aux Avantages  correspondant à leurs priorités ;ont droit aux Avantages comparables (les droits  des femmes, des hommes, des filles et des garçons dans les groupes d'âge appropriés ont été atteints à un niveau similaire).",null,"Sélectionner",{"$f":"VLOOKUP(D31,Calc!$F$26:$G$30,2,FALSE)","v":""},0,null,"Sélectionner",{"$f":"VLOOKUP(H31,Calc!$F$32:$G$37,2,FALSE)","v":""},0]
[null,"Besoin des hommes dans la PTME",null,"Sélectionner",{"$f":"VLOOKUP(D32,Calc!$F$26:$G$30,2,FALSE)","v":""},0,null,"Sélectionner",{"$f":"VLOOKUP(H32,Calc!$F$32:$G$37,2,FALSE)","v":""},0]
[null,"Beoin des populations clés et vulnérables dans la PTME",null,"Sélectionner",{"$f":"VLOOKUP(D33,Calc!$F$26:$G$30,2,FALSE)","v":""},0,null,"Sélectionner",{"$f":"VLOOKUP(H33,Calc!$F$32:$G$37,2,FALSE)","v":""},0]
[null,"Besoin des hommes dans le traitement ARV",null,"Sélectionner",{"$f":"VLOOKUP(D34,Calc!$F$26:$G$30,2,FALSE)","v":""},0,null,"Sélectionner",{"$f":"VLOOKUP(H34,Calc!$F$32:$G$37,2,FALSE)","v":""},0]
[null,"Besoin des enfants dans le traitement ARV",null,"Sélectionner",{"$f":"VLOOKUP(D35,Calc!$F$26:$G$30,2,FALSE)","v":""},0,null,"Sélectionner",{"$f":"VLOOKUP(H35,Calc!$F$32:$G$37,2,FALSE)","v":""},0]
[null,"Besoin des populations clés dans le traitement ARV",null,"Sélectionner",{"$f":"VLOOKUP(D36,Calc!$F$26:$G$30,2,FALSE)","v":""},0,null,"Sélectionner",{"$f":"VLOOKUP(H36,Calc!$F$32:$G$37,2,FALSE)","v":""},0]
[null,"Besoin des enfants vivant avec dan le soutien psychosocial",null,"Sélectionner",{"$f":"VLOOKUP(D37,Calc!$F$26:$G$30,2,FALSE)","v":""},0,null,"Sélectionner",{"$f":"VLOOKUP(H37,Calc!$F$32:$G$37,2,FALSE)","v":""},0]
[null,"Besoin des femmes vivant avec dan le soutien psychosocial",null,"Sélectionner",{"$f":"VLOOKUP(D38,Calc!$F$26:$G$30,2,FALSE)","v":""},0,null,"Sélectionner",{"$f":"VLOOKUP(H38,Calc!$F$32:$G$37,2,FALSE)","v":""},0]
[null,"Besoin des OEV dans la riposte au sida",null,"Sélectionner",{"$f":"VLOOKUP(D39,Calc!$F$26:$G$30,2,FALSE)","v":""},0,null,"Sélectionner",{"$f":"VLOOKUP(H39,Calc!$F$32:$G$37,2,FALSE)","v":""},0]
[{"$nulls":4},{"$f":"E26*2","v":{"$error":"#VALUE!"}},{"$nulls":3},{"$f":"I26*2","v":{"$error":"#VALUE!"}}]

{"sheet":"Dashboard","index":7,"n_rows":82,"n_cols":16,"rows_kept":82,"merged":[[0,0,0,12]]}
[{"$f":"UPPER(IF([1]Setup!L8=1,\"tableau de bord\",\"dashboard\"))","v":"TABLEAU DE BORD"}]
{"$rows_empty":14}
["Situation des principaux aspects de l'evaluation"]
[]
[]
["A-Epidémiologie et suivi évaluation",{"$nulls":4},"Score"]
["1. Epidémiologie",{"$nulls":4},{"$f":"IFERROR('1_Epid-SuiviEval'!D18,\"\")","v":""},{"$nulls":9},{"$f":"IF(F20=\"\",0,1)","v":0}]
["2. Indicateurs",{"$nulls":4},{"$f":"IFERROR('1_Epid-SuiviEval'!D31,\"\")","v":""},{"$nulls":9},{"$f":"IF(F21=\"\",0,1)","v":0}]
["3. Outils de planification",{"$nulls":4},{"$f":"IFERROR('1_Epid-SuiviEval'!D35,\"\")","v":""},{"$nulls":9},0]
["4. Canevas de rapportage",{"$nulls":4},{"$f":"IFERROR('1_Epid-SuiviEval'!D45,\"\")","v":""},{"$nulls":9},0]
["5. Qualité de rapportage",{"$nulls":4},{"$f":"IFERROR('1_Epid-SuiviEval'!D49,\"\")","v":""},{"$nulls":9},0]
["B- FACTEURS SOCIOECONOMIQUES ET PARTICIPATION"]
["6. Facteurs sociaux, culturels et économiques ",{"$nulls":4},{"$f":"IFERROR('2_SocEcoParticipation'!D18,\"\")","v":""},{"$nulls":9},{"$f":"IF(F26=\"\",0,1)","v":0}]
["7. Participation significative  ",{"$nulls":4},{"$f":"IFERROR('2_SocEcoParticipation'!D25,\"\")","v":""},{"$nulls":9},0]
["C-POLITIQUE"]
["8. Facteurs politiques et juridiques",{"$nulls":4},{"$f":"IFERROR('3_Politiques'!D18,\"\")","v":""},{"$nulls":9},{"$f":"IF(F29=\"\",0,1)","v":0}]
["9. Egalité du genre",{"$nulls":4},{"$f":"IFERROR('3_Politiques'!D54,\"\")","v":""},{"$nulls":9},{"$f":"IF(F30=\"\",0,1)","v":0}]
["D-PROGRAMME"]
["10. Populations visées et genre",{"$nulls":4},{"$f":"IFERROR('4_Programme'!D19,\"\")","v":""},{"$nulls":9},{"$f":"IF(F32=\"\",0,1)","v":0}]
["12. Interventions et genre",{"$nulls":4},{"$f":"IFERROR('4_Programme'!D22,\"\")","v":""},{"$nulls":9},0]
["E-Coordination"]
["13. Coordination des programmes",{"$nulls":4},{"$f":"IFERROR('5_Coordination'!D18,\"\")","v":""},{"$nulls":9},{"$f":"IF(F35=\"\",0,1)","v":0}]
["14. Coordination des interventions",{"$nulls":4},{"$f":"IFERROR('5_Coordination'!D25,\"\")","v":""},{"$nulls":9},0]
["F-Coordination"]
["15. Prévision de la planification Droits humains",{"$nulls":4},{"$f":"IFERROR('6_Eval-CSN'!E18,\"\")","v":{"v":0.75,"d":"0.8"}},{"$nulls":9},1]
["16. Réalisation Droits humains",{"$nulls":4},{"$f":"IFERROR('6_Eval-CSN'!I18,\"\")","v":""},{"$nulls":9},0]
["17. Prévision de la planification Genre",{"$nulls":4},{"$f":"IFERROR('6_Eval-CSN'!E26,\"\")","v":""},{"$nulls":9},0]
["18. Réalisation Genre",{"$nulls":4},{"$f":"IFERROR('6_Eval-CSN'!I26,\"\")","v":""},{"$nulls":9},0]
[]
[]
[]
[{"$f":"A19","v":"A-Epidémiologie et suivi évaluation"},{"$f":"IFERROR(SUM(F20:F24)/SUM(P20:P24),\"\")","v":""}]
["B-Facteurs socioéconomiques/ participation",{"$f":"IFERROR((SUM(F26:F27)/(P26+P27)),\"\")","v":""}]
["C-Politique",{"$f":"IFERROR(SUM(F29:F30)/(P29+P30),\"\")","v":""}]
["D-Programme",{"$f":"IFERROR(SUM(F32:F33)/(P32+P33),\"\")","v":""}]
["E-Coordination",{"$f":"IFERROR(SUM(F35:F36)/(P35+P36),\"\")","v":""}]
["F_Evaluation CSN (Prévision & Réalisation",{"$f":"IFERROR(SUM(F38:F41)/(P38+P39+P40+P41),\"\")","v":0.75}]
{"$rows_empty":15}
["Evolution de la prévalence du VIH",{"$nulls":3},2010,2011]
[{"$nulls":3},"Nationale-Globale",0,0]
[{"$nulls":3},"Nationale- Femmes enceintes",0,0]
[{"$nulls":3},"Région-Globale",0,0]
[{"$nulls":3},"Femmes enceintes",0,0]
[]
["Evolution file active",{"$nulls":3},2010,2011]
[{"$nulls":3},"PVVIH Totaux",0,0]
[{"$nulls":3},"Total PVVIH sous ARV",0,0]
[{"$nulls":3},"Adultes sous ARV",0,0]
[{"$nulls":3},"Enfants sous ARV",0,0]
[]
["Evolution des services"]
[{"$nulls":4},2010,2011]
[{"$nulls":3},"PVVIH ayant fait CD4",0,0]
[{"$nulls":3},"PVVIH ayant fait CV",0,0]
[{"$nulls":3},"Enfants ayant fait PCR",0,0]

{"sheet":"Calc","index":8,"n_rows":73,"n_cols":10,"rows_kept":73,"hidden":true}
[]
[]
["Facteurs politiques",{"$nulls":3},"Programme"]
[null,"FP.1",null,null,"P.1"]
[null,null,"Sélectionner",{"$f":"\"\"","v":""},null,"Sélectionner",{"$f":"\"\"","v":""}]
[null,null,"Oui, totalement",2,null,"Oui, totalement",2]
[null,null,"Oui, en partie seulement",1,null,"Oui, en partie seulement",1]
[null,null,"Non",0,null,"Non",0]
[null,null,"Non applicable",null,null,"Non applicable"]
[null,"FP.2",null,null,"P.5"]
[null,null,"Sélectionner",{"$f":"\"\"","v":""},null,"Sélectionner",{"$f":"\"\"","v":""}]
[null,null,"Oui, totalement",2,null,"Très significatif",3]
[null,null,"Oui, en partie seulement",1,null,"Modéré significatif",2]
[null,null,"Non",0,null,"Faiblement significatif",1]
[null,null,"Non applicable",null,null,"Non pas du tout",0]
[null,"FP.3",{"$nulls":3},"Non applicable"]
[null,null,"Sélectionner",{"$f":"\"\"","v":""}]
[null,null,"Oui, totalement",0,"EP.1"]
[null,null,"Oui, en partie seulement",1,null,"Sélectionner",{"$f":"\"\"","v":""},null,null,"Sélectionner"]
[null,null,"Non",2,null,"Oui, intégralement",2,null,null,"1-Epidémiologie"]
[null,null,"Non applicable",null,null,"Oui, en partie seulement",1,null,null,"2-Suivi Evaluation"]
[null,"FP.4",{"$nulls":3},"Non",0,null,null,"3-Socioéconomique"]
[null,null,"Sélectionner",{"$f":"\"\"","v":""},null,"Non applicable",{"$nulls":3},"4-Participation"]
[null,null,"Oui, totalement",2,{"$nulls":5},"5-Politique"]
[null,null,"Oui, en partie seulement",1,"Eval CSN",{"$nulls":4},"6-Programmes"]
[null,null,"Non",0,null,"Sélectionner",{"$f":"\"\"","v":""},null,null,"7-Coordination"]
[null,null,"Non applicable",null,null,"Oui, en intégralité",2,null,null,"8-Contenu PSN"]
[null,"FP.5",{"$nulls":3},"Oui, en partie seulement",1,null,null,"9-Réalisations PSN"]
[null,null,"Sélectionner",{"$f":"\"\"","v":""},null,"Non",0,null,null,"10-Autres"]
[null,null,"Oui, totalement",2,null,"Non applicable",{"$nulls":3},"Sélectionner"]
[null,null,"Oui, en partie seulement",1,"Eval réalisation",{"$nulls":4},"Recommandation"]
[null,null,"Non",0,null,"Sélectionner",{"$f":"\"\"","v":""},null,null,"Priorité"]
[null,null,"Non applicable",null,null,"Très significatif",3,null,null,"Stratégie"]
[null,"FP.6",{"$nulls":3},"Modéré significatif",2,null,null,"Actions prioritaire"]
[null,null,"Sélectionner",{"$f":"\"\"","v":""},null,"Faiblement significatif",1,null,null,"Activité"]
[null,null,"Oui, totalement",0,null,"Non pris en compte",0]
[null,null,"Oui, en partie seulement",1,null,"Non applicable",{"$nulls":3},"Sélectionner"]
[null,null,"Non",2,{"$nulls":5},"Elevé"]
[null,null,"Non applicable",{"$nulls":6},"Moyenne"]
[null,"FP.8",{"$nulls":7},"Basse"]
[null,null,"Sélectionner",{"$f":"\"\"","v":""},{"$nulls":5},"Sans priorité"]
[null,null,"Très significatif",3,{"$nulls":5},"Non applicable"]
[null,null,"Modéré significatif",2]
[null,null,"Faiblement significatif",1,{"$nulls":5},"Sélectionner"]
[null,null,"Non pris en compte",0,{"$nulls":5},"Toute la durée du CSN"]
[null,null,"Non applicable",{"$nulls":6},2019]
[{"$nulls":9},2020]
[null,"EP4.",{"$nulls":7},2021]
[null,null,"Sélectionner",{"$f":"\"\"","v":""},{"$nulls":5},2022]
[null,null,"Oui pour toutes les populations clés",2,{"$nulls":5},"Sans délai"]
[null,null,"Oui, pour une partie des populations clés",1,{"$nulls":5},"Aucun délai"]
[null,null,"Non, pour aucune",0,{"$nulls":5},"Continue"]
[null,null,"Non applicable",{"$nulls":6},"Non applicable"]
[null,"EP6"]
[null,null,"Sélectionner",{"$f":"\"\"","v":""}]
[null,null,"Oui",1]
[null,null,"Non",0]
[null,null,"Non applicable"]
[]
[]
[null,null,"Sélectionner",{"$f":"\"\"","v":""}]
[null,null,"Beaucoup de catégories",0]
[null,null,"Quelques catégories assez significatives",1]
[null,null,"Quelques catégories non significatives",2]
[null,null,"Non, aucune catégorie",3]
[null,null,"Non applicable"]
[]
[null,null,"Sélectionner"]
[null,null,"Très significatif",0]
[null,null,"Modéré significatif",1]
[null,null,"Faiblement significatif",2]
[null,null,"Non ",3]
[null,null,"Non applicable"]

{"sheet":"Orientations","index":9,"n_rows":76,"n_cols":6,"rows_kept":76,"merged":[[0,0,0,12]]}
["ORENTATIONS SUR LES ACTIONS PRIORITAIRES"]
{"$rows_empty":15}
[{"$nulls":5},"ACTIONS PRIORITAIRES"]
["EPIDEMIOLOGIE"]
[null,{"$f":"+'1_Epid-SuiviEval'!B20","v":"Existe-t-il un  récent taux national d’incidence du VIH, ventilé par sexe et par âge, chez la popula­tion générale ? Si oui, donnez les précisions"},{"$f":"+'1_Epid-SuiviEval'!D20","v":""}]
[null,{"$f":"+'1_Epid-SuiviEval'!B21","v":"Des estimations de la taille pour les populations clés existent-elles ? Veuillez fournir les détails"},{"$f":"+'1_Epid-SuiviEval'!D21","v":""}]
[null,{"$f":"+'1_Epid-SuiviEval'!B23","v":"Le taux de prévalence du VIH chez les populations clés sont-elles  ventilées par sexe et par âge? Veuillez donner les précisions; Préciser l’évolution dans le temps des taux de prévalence chez les populations clés (ventilés par sexe et par âge). "},{"$f":"+'1_Epid-SuiviEval'!D22","v":""}]
[null,{"$f":"+'1_Epid-SuiviEval'!B24","v":"Existe-t-il une étude des modes de transmission ? Si oui veuillez donner les modes de transmission du VIH pour les femmes, les filles, les hommes, les garçons et les transgenres ? "},{"$f":"+'1_Epid-SuiviEval'!D24","v":""}]
[null,{"$f":"+'1_Epid-SuiviEval'!B28","v":"Existe-t-il des données disponibles sur la violence conjugale (VC), y compris les violences basées sur le genre ? "},{"$f":"+'1_Epid-SuiviEval'!D28","v":""}]
[null,{"$f":"+'1_Epid-SuiviEval'!B29","v":"Existe-t-il  des données sur la stigmatisation et la discrimination envers les personnes vivant avec le VIH, à travers l’indicateur de la stigmatisation ? données ventilées par sexe et par âge"},{"$f":"+'1_Epid-SuiviEval'!D29","v":""}]
["SUIVI EVALUATION"]
[null,{"$f":"+'1_Epid-SuiviEval'!B31","v":"Les indicateurs dans leur définition prennent-ils en compte les aspects genre"},{"$f":"+'1_Epid-SuiviEval'!D31","v":""}]
[null,{"$f":"+'1_Epid-SuiviEval'!B35","v":"Les outils de planification prennent-ils en compte les aspects genre"},{"$f":"+'1_Epid-SuiviEval'!F35","v":""}]
[null,{"$f":"+'1_Epid-SuiviEval'!B45","v":"Les outils de rapportage prennent-ils compte les aspects genre"},{"$f":"+'1_Epid-SuiviEval'!F45","v":""}]
[null,{"$f":"+'1_Epid-SuiviEval'!B49","v":"Les résultats contenu dans le rapport prennent-ils en compte les aspects genre"},{"$f":"+'1_Epid-SuiviEval'!F49","v":""}]
["FACTEUS SOCIOCULTURELS ET ECONOMIQUES"]
[null,{"$f":"+'2_SocEcoParticipation'!B19","v":"Quelles sont les normes et les pratiques socio‑culturelles qui peuvent contribuer à accroître le risque de transmission du VIH chez les femmes et les filles, les hommes et les garçons, et les transgenres, sont-elles prises en compte"},{"$f":"+'2_SocEcoParticipation'!D19","v":""}]
[null,{"$f":"+'2_SocEcoParticipation'!B21","v":"Certaines normes et pratiques socio‑culturelles contribuent‑elles à accroître le risque de transmission du VIH dans d’autres populations clés ? Si oui, quelles sont ces normes et pratiques ? "},{"$f":"+'2_SocEcoParticipation'!D21","v":""}]
[null,{"$f":"+'2_SocEcoParticipation'!B23","v":"Existent-ils des normes et des pratiques socio‑culturelles qui peuvent contribuer à réduire les écarts entre les sexes dans l’un des domaines évoqués (connaissances, utilisation du préservatif, stigmatisation, discrimination, grossesses précoces ou non désirées) ? Si oui lesquelles"},{"$f":"+'2_SocEcoParticipation'!D23","v":""}]
["PARTICIPATION SIGNIFICATIVE"]
[null,{"$f":"+'2_SocEcoParticipation'!B26","v":"Les réseaux et les organisations œuvrant pour les personnes vivant avec le VIH, les droits des femmes, la santé sexuelle et reproductive, l’égalité des sexes, la jeunesse et les autres populations clés, telles que les hommes homosexuels et les autres hommes ayant des rapports sexuels avec des hommes (HSH), les professionnels du sexe, les consommateurs de drogues injectables (CDI) et les transgenres, participent‑ils à la prise de décisions à différents stades ou niveaux et dans différents domaines de la lutte contre le VIH/SIDA du pays, y compris à la conception et à la mise en œuvre des interventions ? Veuillez différencier les groupes. Veuillez documenter les observations qui sont pertinentes dans une perspective sexospécifique concernant la participation de la société civile à la lutte contre le VIH/SIDA. "},{"$f":"+'2_SocEcoParticipation'!D26","v":""}]
[null,{"$f":"+'2_SocEcoParticipation'!B27","v":"Y a‑t‑il des mécanismes formels (par exemple des forums de partenariat, des groupes thématiques mixtes sur le VIH, des commissions/conseils nationaux sur le SIDA, un CCM) garantissant que les points de vue, les besoins et les droits de ces populations sont pris en compte dans les processus de prise de décision pour les interventions de lutte contre le VIH/SIDA ? Si oui, veuillez décrire ces mécanismes en mettant particulièrement l’accent sur les questions de genre et en donnant si possible des exemples. "},{"$f":"+'2_SocEcoParticipation'!D27","v":""}]
[null,{"$f":"+'2_SocEcoParticipation'!B29","v":"Des dispositions (juridiques, politiques, financières) existe‑t‑elles pour renforcer les capacités et allouer des ressources dans le but d’encourager la participation des femmes, des filles et des femmes transgenres aux interventions de lutte contre le VIH/SIDA ? Si oui, lesquelles"},{"$f":"+'2_SocEcoParticipation'!D29","v":""}]
["POLITIQUES"]
[null,{"$f":"+'3_Politiques'!B19","v":"Existe t il un cadre juridique ou politique pouvant avoir un impact direct sur les femmes et les filles, les hommes et les garçons, et les populations clés en ce qui concerne le VIH/SIDA, ce en s'attaquant aux points suivants:"},{"$f":"+'3_Politiques'!G19","v":""}]
[null,{"$f":"+'3_Politiques'!B29","v":"Y a t il des cadres juridiques qui protègent spécifiquement les droits des personnes vivant avec le VIH, des femmes et des filles, et d’autres populations clés dans le pays en termes de "},{"$f":"+'3_Politiques'!E29","v":""}]
[null,{"$f":"+'3_Politiques'!B39","v":"Certains éléments indiquent ils que ces lois ne sont pas mises en œuvre de manière intégrale et impartiale, par exemple pour les femmes et les hommes, pour les transgenres, pour les populations clés, pour les personnes vivant avec le VIH ? "},{"$f":"+'3_Politiques'!D39","v":""}]
[null,{"$f":"+'3_Politiques'!B40","v":"Les lois et les politiques existantes se traduisent elles par un accès égal aux services pour les femmes, les filles, les hommes, les garçons et les populations clés, en termes de "},{"$f":"+'3_Politiques'!D40","v":""}]
[null,{"$f":"+'3_Politiques'!B50","v":"Les pouvoirs publics, tant le pouvoir exécutif que législatif, oeuvrent ils à la mise en oeuvre des décla¬rations et traités internationaux dont le pays est signataire ? Veuillez donner des exemples de lois approuvées et de services fournis conformément aux engagements signés dans la Déclaration politique de 2011 concernant le VIH/ SIDA, la Déclaration de Pékin et la Convention sur l’élimination de toutes les formes de discrimination à l’égard des femmes"},{"$f":"+'3_Politiques'!D50","v":""}]
[null,{"$f":"+'3_Politiques'!B51","v":"Y a t il des signes de lutte contre les pratiques discriminatoires ou coercitives dans les établissements de soins de santé qui pourraient influer sur l’accès et l’utilisation des services liés au VIH par les femmes vivant avec le VIH, y compris celles issues des populations clés et marginalisées ? "},{"$f":"+'3_Politiques'!D51","v":""}]
[null,{"$f":"+'3_Politiques'!B52","v":"Y a t il des signes de lutte contre les pratiques discriminatoires dans la magistrature et de la part des agents de la force publique (y compris la police) qui pourraient empêcher les femmes, les filles, ou n’importe quelle autre population clé ou marginalisée d’accéder à leurs droits ? "},{"$f":"+'3_Politiques'!D52","v":""}]
[null,{"$f":"+'3_Politiques'!B53","v":"Le pourcentage de femmes dans les organes législatifs (parlement/sénat) est-il significatif ? Quel est le pourcentage de femmes au gouvernement (y compris dans les entités qui lui sont rattachées) ? "},{"$f":"+'3_Politiques'!D53","v":""},{"$f":"IF(AND(0.5<=C46,AND(C46<0.9)),1,0)","v":0},{"$f":"IF(C46>=0.9,1,0)","v":1}]
["EGALITE DU GENRE"]
[null,{"$f":"+'3_Politiques'!B55","v":"Existe-t-il une politique/directive nationale relative à l’égalité des sexes sur laquelle s'appuient les interventions nationales de lutte contre le VIH/SIDA s ? Si oui, fournir des détails"},{"$f":"+'3_Politiques'!D55","v":""}]
[null,{"$f":"+'3_Politiques'!B57","v":"La politique de lutte contre le VIH/SIDA reflète‑t‑elle un engagement en faveur de l’égalité des sexes ? "},{"$f":"+'3_Politiques'!D57","v":""}]
[null,{"$f":"+'3_Politiques'!B60","v":"A t-on pris en compte la stigmatisation et discrimination des personnes vivant avec le VIH, notamment des femmes et des filles vivant avec le VIH (y compris les femmes transgenres), dans les services de santé en lien ou non avec le VIH ainsi que les services sociaux et judiciaires ? "},{"$f":"+'3_Politiques'!D60","v":""}]
[null,{"$f":"+'3_Politiques'!B61","v":"Existe-t-il une stigmatisation et discrimination à l’encontre des populations clés ? "},{"$f":"+'3_Politiques'!K61","v":""}]
[null,{"$f":"+'3_Politiques'!B62","v":"L'engagement se traduit‑il par l’allocation d’un budget permettant de prendre des initiatives et de proposer des services tenant compte des sexospécifiques et influant sur l’égalité des sexes ? Veuillez donner des exemples"},{"$f":"+'3_Politiques'!K62","v":""},{"$f":"IF(AND(0.5<=C52,AND(C52<0.9)),1,0)","v":0},{"$f":"IF(C52>=0.9,1,0)","v":1}]
["PROGRAMMES"]
[null,{"$f":"+'4_Programme'!B19","v":"Quelles populations les interventions nationales de lutte contre le VIH/SIDA visent elles ? Veuillez ventiler les données par âge, par sexe, par identité de genre ou orientation sexuelle, le cas échéant"},{"$f":"+'4_Programme'!F19","v":0}]
[null,{"$f":"+'4_Programme'!B22","v":"Les interventions de lutte contre le VIH/SIDA reconnaissent elles, prennent elles en compte et abordent elles les questions de genre liées aux éléments suivants "},{"$f":"+'4_Programme'!G22","v":""}]
[null,{"$f":"+'4_Programme'!B29","v":"Les problèmes liés à l’identité de genre et à l’orientation sexuelle ont‑ils été reconnus dans la politique/stratégie sur le VIH ? "},{"$f":"+'4_Programme'!K29","v":""}]
[null,{"$f":"+'4_Programme'!B30","v":"Si oui, quelles sont les recommandations en matière de services liés au VIH concernant la stigmatisation, la discri­mination et les droits humains ? "},{"$f":"+'4_Programme'!D30","v":""}]
[null,{"$f":"+'4_Programme'!B31","v":"Dans quelle mesure les interventions nationales de lutte contre le VIH/SIDA sont‑elles financées par des sources nationales  ? "},{"$f":"IFERROR('4_Programme'!D31/3,\"\")","v":""},{"$f":"IF(AND(0.5<=C58,AND(C58<0.9)),1,0)","v":0},{"$f":"IF(C58>=0.9,1,0)","v":1}]
[null,{"$f":"+'4_Programme'!B32","v":"Dans quelle mesure les interventions nationales de lutte contre le VIH/SIDA sont‑elles financées par des sources externes ? "},{"$f":"IFERROR(+'4_Programme'!D32/3,\"\")","v":""},{"$f":"IF(AND(0.5<=C59,AND(C59<0.9)),1,0)","v":0},{"$f":"IF(C59>=0.9,1,0)","v":1}]
["COORDINATION DES PROGRAMMES"]
[null,{"$f":"+'5_Coordination'!B19","v":"Existe un groupe genre et VIH"},{"$f":"+'5_Coordination'!D19","v":""}]
[null,{"$f":"+'5_Coordination'!B20","v":"Ce groupe prend t-il en compte les droits humains"},{"$f":"+'5_Coordination'!D20","v":""}]
[null,{"$f":"+'5_Coordination'!B21","v":"Les capacités des membres de ce groupe ont-elles été renforcées"},{"$f":"+'5_Coordination'!D21","v":""}]
[null,{"$f":"+'5_Coordination'!B22","v":"Le groupe fonctionne t-il régulièrement"},{"$f":"+'5_Coordination'!D22","v":""}]
[null,{"$f":"+'5_Coordination'!B23","v":"Le groupe genre et droits humains produit-il des rapports périodiques?"},{"$f":"+'5_Coordination'!D23","v":""}]
[null,{"$f":"+'5_Coordination'!B24","v":"Le groupe genre et droits humainsfait-il une analyse des rapports périodiques sous l'angle du genre et des droits humains,"},{"$f":"+'5_Coordination'!D24","v":""}]
["COORDINATION DES INTERVENTIONS"]
[null,{"$f":"+'5_Coordination'!B26","v":"Le mécanisme national de coordination sur le VIH met‑il particulièrement l’accent sur l’égalité des sexes ? Si oui, indiquez comment. "},{"$f":"+'5_Coordination'!D26","v":""}]
[null,{"$f":"+'5_Coordination'!B27","v":"Existe‑t‑il d’autres mécanismes de coordination dans différents secteurs gouvernementaux (condition féminine, santé, droits humains, etc.) et à différents niveaux permettant d’agir conjointement en faveur de la prise en compte de l’égalité des sexes dans les interventions nationales de lutte contre le VIH/SIDA ? "},{"$f":"+'5_Coordination'!D27","v":""}]
[null,{"$f":"+'5_Coordination'!B28","v":"La société civile est‑elle officiellement impliquée dans l’un des mécanismes de coordination précé­demment cités, en particulier les réseaux de personnes vivant avec le VIH, les représentants des populations clés identifiées et les groupes qui travaillent sur les questions liées à l’égalité des sexes et aux droits des femmes ? "},{"$f":"+'5_Coordination'!D28","v":""}]
[null,{"$f":"+'5_Coordination'!B29","v":"Existe‑t‑il, au sein de la société civile, des mécanismes de coordination sur le VIH et le genre, et si oui, quels sont les groupes impliqués ?"},{"$f":"+'5_Coordination'!D29","v":""}]
["EVALUATION DU CSN"]
[null,"Planification (préviion) concernant les Droits hmumains",{"$f":"+'6_Eval-CSN'!E17","v":1.5}]
[null,"Réalisation concernant les Droits hmumains",{"$f":"+'6_Eval-CSN'!I17","v":{"$error":"#VALUE!"}}]
[null,"Planification (préviion) concernant le Genre",{"$f":"+'6_Eval-CSN'!E40","v":{"$error":"#VALUE!"}}]
[null,"Réalisation concernant le Genre",{"$f":"+'6_Eval-CSN'!I40","v":{"$error":"#VALUE!"}}]

{"sheet":"Priorites","index":10,"n_rows":56,"n_cols":12,"rows_kept":56,"merged":[[0,0,0,14],[16,2,16,7],[17,2,17,7],[17,8,17,9],[18,2,18,7],[18,8,18,9],[19,2,19,7],[19,8,19,9],[20,2,20,7],[20,8,20,9],[21,2,21,7],[21,8,21,9],[22,2,22,7],[22,8,22,9],[23,2,23,7],[23,8,23,9],[24,2,24,7],[24,8,24,9],[25,2,25,7],[25,8,25,9],[26,2,26,7],[26,8,26,9],[27,2,27,7],[27,8,27,9],[28,2,28,7],[28,8,28,9],[29,2,29,7],[29,8,29,9],[30,2,30,7],[30,8,30,9],[31,2,31,7],[31,8,31,9],[32,2,32,7],[32,8,32,9],[33,2,33,7],[33,8,33,9],[34,2,34,7],[34,8,34,9],[35,2,35,7],[35,8,35,9],[36,2,36,7],[36,8,36,9],[37,2,37,7],[37,8,37,9],[38,2,38,7],[38,8,38,9],[39,2,39,7],[39,8,39,9],[40,2,40,7],[40,8,40,9],[41,2,41,7],[41,8,41,9],[42,2,42,7],[42,8,42,9],[43,2,43,7],[43,8,43,9],[44,2,44,7],[44,8,44,9],[45,2,45,7],[45,8,45,9],[46,2,46,7],[46,8,46,9],[47,2,47,7],[47,8,47,9],[48,2,48,7],[48,8,48,9],[49,2,49,7],[49,8,49,9],[50,2,50,7],[50,8,50,9],[51,2,51,7],[51,8,51,9],[52,2,52,7],[52,8,52,9],[53,2,53,7],[53,8,53,9],[54,2,54,7],[54,8,54,9],[55,2,55,7],[55,8,55,9]]}
["PLAN D'AMELIORATION & PRIORITES"]
{"$rows_empty":15}
["DOMAINES","TYPE","DESCRIPTION",{"$nulls":5},"ACTEURS CONCERNES",null,"PRIORITE","ANNEE"]
["Sélectionner","Sélectionner",{"$nulls":8},"Sélectionner","Sélectionner"]
["Sélectionner","Sélectionner",{"$nulls":8},"Sélectionner","Sélectionner"]
["Sélectionner","Sélectionner",{"$nulls":8},"Sélectionner","Sélectionner"]
["Sélectionner","Sélectionner",{"$nulls":8},"Sélectionner","Sélectionner"]
["Sélectionner","Sélectionner",{"$nulls":8},"Sélectionner","Sélectionner"]
["Sélectionner","Sélectionner",{"$nulls":8},"Sélectionner","Sélectionner"]
["Sélectionner","Sélectionner",{"$nulls":8},"Sélectionner","Sélectionner"]
["Sélectionner","Sélectionner",{"$nulls":8},"Sélectionner","Sélectionner"]
["Sélectionner","Sélectionner",{"$nulls":8},"Sélectionner","Sélectionner"]
["Sélectionner","Sélectionner",{"$nulls":8},"Sélectionner","Sélectionner"]
["Sélectionner","Sélectionner",{"$nulls":8},"Sélectionner","Sélectionner"]
["Sélectionner","Sélectionner",{"$nulls":8},"Sélectionner","Sélectionner"]
["Sélectionner","Sélectionner",{"$nulls":8},"Sélectionner","Sélectionner"]
["Sélectionner","Sélectionner",{"$nulls":8},"Sélectionner","Sélectionner"]
["Sélectionner","Sélectionner",{"$nulls":8},"Sélectionner","Sélectionner"]
["Sélectionner","Sélectionner",{"$nulls":8},"Sélectionner","Sélectionner"]
["Sélectionner","Sélectionner",{"$nulls":8},"Sélectionner","Sélectionner"]
["Sélectionner","Sélectionner",{"$nulls":8},"Sélectionner","Sélectionner"]
["Sélectionner","Sélectionner",{"$nulls":8},"Sélectionner","Sélectionner"]
["Sélectionner","Sélectionner",{"$nulls":8},"Sélectionner","Sélectionner"]
["Sélectionner","Sélectionner",{"$nulls":8},"Sélectionner","Sélectionner"]
["Sélectionner","Sélectionner",{"$nulls":8},"Sélectionner","Sélectionner"]
["Sélectionner","Sélectionner",{"$nulls":8},"Sélectionner","Sélectionner"]
["Sélectionner","Sélectionner",{"$nulls":8},"Sélectionner","Sélectionner"]
["Sélectionner","Sélectionner",{"$nulls":8},"Sélectionner","Sélectionner"]
["Sélectionner","Sélectionner",{"$nulls":8},"Sélectionner","Sélectionner"]
["Sélectionner","Sélectionner",{"$nulls":8},"Sélectionner","Sélectionner"]
["Sélectionner","Sélectionner",{"$nulls":8},"Sélectionner","Sélectionner"]
["Sélectionner","Sélectionner",{"$nulls":8},"Sélectionner","Sélectionner"]
["Sélectionner","Sélectionner",{"$nulls":8},"Sélectionner","Sélectionner"]
["Sélectionner","Sélectionner",{"$nulls":8},"Sélectionner","Sélectionner"]
["Sélectionner","Sélectionner",{"$nulls":8},"Sélectionner","Sélectionner"]
["Sélectionner","Sélectionner",{"$nulls":8},"Sélectionner","Sélectionner"]
["Sélectionner","Sélectionner",{"$nulls":8},"Sélectionner","Sélectionner"]
["Sélectionner","Sélectionner",{"$nulls":8},"Sélectionner","Sélectionner"]
["Sélectionner","Sélectionner",{"$nulls":8},"Sélectionner","Sélectionner"]
["Sélectionner","Sélectionner",{"$nulls":8},"Sélectionner","Sélectionner"]
["Sélectionner","Sélectionner",{"$nulls":8},"Sélectionner","Sélectionner"]
["Sélectionner","Sélectionner",{"$nulls":8},"Sélectionner","Sélectionner"]